Workbook

Sheet Cost_Input
B1: Residual treatment costs
B2: Treatment Costs
B4: Main WTP operating parameters | H4: Treatment options
K6: TRUE
B7: Total treatment flow | D7: 1 | E7: mgd | J7: Dewatering:
K8: TRUE
B9: Daily solids production | D9: 1000 | E9: lb/day | K9: FALSE
K10: FALSE
D11: FALSE | K11: TRUE | N11: 18221
K12: TRUE
B15: Instructions | H15: Schematic
B16: Enter the treatment plant capacity and the daily solids production for your design condition in the blue cells above. The daily solids production commonly used for the design of residuals treatment processes is the 90th percentile of the historical daily solids production. If the treatment plant uses lime or soda softening, check the indicated box. In the Treatment options block, check the boxes for the treatment processes included in your plant's residuals management plan. The corresponding process schematic is seen in the Schematic block.

Sheet Cost_Schematics
K9: TRUE
K10: FALSE

Sheet Centrifuge
B1: Residual treatment costs
B2: Treatment Costs - Dewatering
B4: Day tank
C6: Tank diameter | D6: 10 | E6: ft | G6: Number of shifts per week | I6: 5
C8: Tank height | D8: 15 | E8: ft | G8: Required day tank storage volume | H8: Number of tanks | I8: Provided day tank volume with all units in service | J8: Provided day tank volume with one unit out of service | K8: Total capital cost
C10: Thickened density | D10: 63 | E10: lb/ft3
G11: (ft3/day) | I11: (ft3) | J11: (ft3)
D12: FALSE | G12: =Cost_Input!D9*(7/I6)*(100/D15)*(1/D10) -> 1111.111111 | H12: =ROUNDUP((G12/(((D8*3.14*D6^2)/4)+((PI()*(D6^2))/96))),0)+D12 -> 1 | I12: =H12*((D8*PI()*D6^2)/4+((PI()*(D6^2))/96)) -> 1181.369737 | J12: =(H12-1)*((D8*PI()*D6^2)/4+((PI()*(D6^2))/96)) -> 0 | K12: ='Cost sheet'!K189 -> 1832753.153
C13: Assumptions
C14: Cone slope | D14: 0.25 | E14: ft/ft
C15: Thickened solids conc. | D15: =IF(Cost_Input!$D$11=TRUE, 20, 2) -> 2 | E15: %
B18: Centrifuge
C20: Desired # of dewatering units | E20: 2
C22: Dewatering equipment runtime | E22: 8 | F22: hr/shift
G23: Centrifuge
D24: TRUE | G24: Inflow solids rate | H24: Inflow hydraulic rate | I24: Hydraulic rate to active unit(s) | K24: Total capital cost
D25: FALSE
D26: TRUE
C27: Assumptions | G27: (lb/hr) | H27: (gpm) | I27: (gpm)
C28: Centrate solids conc. | D28: 0.05 | E28: % | G28: =Cost_Input!D9*(7/$I$6)/$E$22 -> 175 | H28: =G28*(100/D15)/D10*7.48/60 -> 17.31481481 | I28: =N30 -> 17.31481481 | K28: ='Cost sheet'!K302 -> 6580960.487
C29: Polymer dose | D29: =IF(Cost_Input!$D$11=TRUE, 0, 10) -> 10 | E29: lb/dry ton | I29: =IF(D24=TRUE,I28*(E20+1),I28*E20) -> 51.94444444 | N29: =IF(IF($D$24=TRUE,$G$28/($E$20-1),$G$28/$E$20)>Assumptions!E64,"Overloaded",IF($D$24=TRUE,$G$28/($E$20-1),$G$28/$E$20)) -> 175
N30: =IF(IF($D$24=TRUE,$H$28/($E$20-1),$H$28/$E$20)>Assumptions!$E$55,"Overloaded",IF($D$24=TRUE,$H$28/($E$20-1),$H$28/$E$20)) -> 17.31481481

Sheet Belt filter press
B1: Residual treatment costs
B2: Treatment Costs - Dewatering
B4: Day tank
C6: Tank diameter | D6: 20 | E6: ft | G6: Number of shifts per week | I6: 5
C8: Tank height | D8: 20 | E8: ft | G8: Required day tank storage volume | H8: Number of tanks | I8: Provided day tank volume with all units in service | J8: Provided day tank volume with one unit out of service | K8: Total capital cost
C10: Thickened density | D10: 60 | E10: lb/ft3
G11: (ft3/day) | I11: (ft3) | J11: (ft3)
D12: FALSE | G12: =Cost_Input!D9*(7/I6)*(100/D15)*(1/D10) -> 1166.666667 | H12: =ROUNDUP((G12/(((D8*3.14*D6^2)/4)+((PI()*(D6^2))/96))),0)+D12 -> 1 | I12: =H12*((D8*PI()*D6^2)/4+((PI()*(D6^2))/96)) -> 6296.275277 | J12: =(H12-1)*((D8*PI()*D6^2)/4+((PI()*(D6^2))/96)) -> 0 | K12: ='Cost sheet'!K189 -> 1832753.153
C13: Assumptions
C14: Cone slope | D14: 0.25 | E14: ft/ft
C15: Thickened solids conc. | D15: =IF(Cost_Input!$D$11=TRUE, 20, 2) -> 2 | E15: %
B18: Belt Filter Press
C20: Desired # of dewatering units | E20: 3
C22: Dewatering equipment runtime | E22: 8 | F22: hr/shift
G23: Belt Filter Press
D24: TRUE | G24: Inflow solids rate | H24: Inflow hydraulic rate | I24: Hydraulic rate to active unit(s) | K24: Total capital cost
D25: FALSE
D26: TRUE
C27: Assumptions | G27: (lb/hr) | H27: (gpm) | I27: (gpm)
C28: Filtrate solids conc. | D28: 0.05 | E28: % | G28: =Cost_Input!D9*(7/$I$6)/$E$22 -> 175 | H28: =G28*(100/D15)/D10*7.48/60 -> 18.18055556 | I28: =IF(IF($D$24=TRUE,$H$28/($E$20-1),$H$28/$E$20)>Assumptions!$V$63,"Overloaded",IF($D$24=TRUE,$H$28/($E$20-1),$H$28/$E$20)) -> 9.090277778 | K28: ='Cost sheet'!K360 -> 8626421.609
C29: Polymer dose | D29: =IF(Cost_Input!$D$11=TRUE, 0, 10) -> 10 | E29: lb/dry ton

Sheet Plate and frame press
B1: Residual treatment costs
B2: Treatment Costs - Dewatering
B4: Day tank
C6: Tank diameter | D6: 20 | E6: ft | G6: Number of shifts per week | I6: 5
C8: Tank height | D8: 20 | E8: ft | G8: Required day tank storage volume | H8: Number of tanks | I8: Provided day tank volume with all units in service | J8: Provided day tank volume with one unit out of service | K8: Total capital cost
C10: Thickened density | D10: 65 | E10: lb/ft3
G11: (ft3/day) | I11: (ft3) | J11: (ft3)
D12: FALSE | G12: =Cost_Input!D9*(7/I6)*(100/D15)*(1/D10) -> 1076.923077 | H12: =ROUNDUP((G12/(((D8*3.14*D6^2)/4)+((PI()*(D6^2))/96))),0)+D12 -> 1 | I12: =H12*((D8*PI()*D6^2)/4+((PI()*(D6^2))/96)) -> 6296.275277 | J12: =(H12-1)*((D8*PI()*D6^2)/4+((PI()*(D6^2))/96)) -> 0 | K12: ='Cost sheet'!K189 -> 1832753.153
C13: Assumptions
C14: Cone slope | D14: 0.25 | E14: ft/ft
C15: Thickened solids conc. | D15: =IF(Cost_Input!$D$11=TRUE, 20, 2) -> 2 | E15: %
B18: Plate and Frame Press
C20: Desired # of dewatering units | E20: 2
C22: Dewatering equipment runtime | E22: 8 | F22: hr/shift
G23: Plate and Frame Press
D24: TRUE | G24: Inflow solids rate | H24: Inflow hydraulic rate | I24: Solids loading rate to active unit(s) | K24: Total capital cost
D25: FALSE
D26: TRUE
C27: Assumptions | G27: (lb/hr) | H27: (gpm) | I27: (lb/hr)
C28: Pressate solids conc. | D28: 0.05 | E28: % | G28: =Cost_Input!D9*(7/$I$6)/$E$22 -> 175 | H28: =G28*(100/D15)/D10*7.48/60 -> 16.78205128 | I28: =IF(IF($D$24=TRUE,$G$28/($E$20-1),$G$28/$E$20)>Assumptions!$AD$64,"Overloaded",IF($D$24=TRUE,$G$28/($E$20-1),$G$28/$E$20)) -> 175 | K28: ='Cost sheet'!K418 -> 7652491.509
C29: Polymer dose | D29: =IF(Cost_Input!$D$11=TRUE, 0, 10) -> 10 | E29: lb/dry ton

Sheet Thickener
B1: Residual treatment costs
B2: Treatment Costs - Thickener
B4: Thickener
C6: Thickener diameter | D6: 40 | E6: ft | G6: Number of main sed. basins | J6: 2 | K6: basins
G7: Sed. Basin blowdown frequency | J7: 2 | K7: per hour
G8: Blowdown duration | J8: 5 | K8: min
D10: FALSE
D11: FALSE
C12: Assumptions | H12: Inst.:Avg. Peaking Factor | I12: Inst. loading rate from sed. Basins | J12: Total inst. solid loading rate | K12: Number of thickening units | L12: Required thickening area | M12: Provided area with all units active | N12: Provided area with one unit out of service | O12: Total capital cost
C13: Thickener height | D13: 15 | E13: ft
C14: Hydraulic loading rate | D14: 0.1 | E14: gpm/ft2
C15: Solids loading rate | D15: 4 | E15: lb/day-ft2 | I15: (lb/day) | J15: (lb/day) | L15: (ft2) | M15: (ft2) | N15: (ft2)
C16: Influent solids concentration | D16: 0.3 | E16: % dry/wet | H16: =IF(1/(J6*J7*J8/60)>1,1/(J6*J7*J8/60),1) -> 3 | I16: =Cost_Input!D9*H16 -> 3000 | J16: =G16+I16 -> 3000 | K16: =ROUNDUP(L17/((PI()*D6^2)/4),0)+D10 -> 1 | L16: =IF(L17>L18, L17, L18) -> 832.4430199 | M16: =K16*((PI()*D6^2)/4) -> 1256.637061 | N16: =(K16-1)*((PI()*D6^2)/4) -> 0 | O16: ='Cost sheet'!K128 -> 2705785.529
C17: Polymer Dose | D17: =IF(Cost_Input!$D$11=TRUE, 0, 2) -> 2 | E17: lb/dry-ton | L17: =J16/D15 -> 750
L18: =(J16*(100/D16)/62.4*7.48/24/60)/D14 -> 832.4430199
B21: · All blue fields must be entered (required).

Sheet SFBW EQ
B1: Residual treatment costs
B2: Treatment Costs - SFBW EQ
B4: SFBW Equalization Basin
C6: EQ basin diameter | D6: 40 | E6: ft | H6: Daily backwashes | J6: 2
C8: EQ basin height | D8: 15 | E8: ft | H8: Back wash volume | J8: 100000 | K8: gal/wash
D10: FALSE
C12: Assumptions | G12: SFBW inflow | H12: Required SFBW equalization volume | I12: # of EQ basins | J12: Total provided equalization volume | K12: Provided equalization volume with one unit out of service | L12: Total capital cost
C13: Backwash frequency | D13: 30 | E13: min
C14: BW fraction of trt. volume | D14: 6 | E14: %
G15: (gpd) | H15: (gpd) | J15: (gal) | K15: (ft3)
G16: =J8*J6 -> 200000 | H16: =IF(D14=0,0,IF((G16-(J6*D13)*(Cost_Input!D7*1000000/24/60)*(D14/100))>0,(G16-(J6*D13)*(Cost_Input!D7*1000000/24/60)*(D14/100)),0)) -> 197500 | I16: =ROUNDUP((H16/7.48)/(D8*(PI()/4*D6^2)),0)+D10 -> 2 | J16: =I16*(D8*PI()/4*(D6^2))*7.48 -> 281989.3566 | K16: =IF(I16=0,0,IF(I16>0,(I16-1)*(D8*PI()/4*(D6^2))*7.48,"N/A")) -> 140994.6783 | L16: =IF(I16=0,0,'Cost sheet'!K478) -> 1749341.53
B20: · All blue fields must be entered (required).

Sheet SFBW Clarifier
B1: Residual treatment costs
B2: Treatment Costs - SFBW Clarifier
B4: SFBW Clarification
C6: Clarifier diameter | D6: 8 | E6: ft
D8: FALSE
G9: Clarifier inflow | H9: Required settling area | I9: Number of clarifiers | J9: Area of all clarifiers | K9: Area of all minus 1 unit | L9: Total capital cost
C10: Assumptions
C11: Clarifier height | D11: 15 | E11: ft
C12: Clarifier overflow rate | D12: 1 | E12: gpm/sf | G12: (gpm) | H12: (ft2) | J12: (ft2) | K12: (ft2)
C13: Polymer dose | D13: 0.2 | E13: mg/L | G13: =Cost_Input!D7*('SFBW EQ'!D14/100)*1000000/1440 -> 41.66666667 | H13: =G13/D12 -> 41.66666667 | I13: =ROUNDUP(H13/((PI()*D6^2)/4),0)+D8 -> 1 | J13: =((PI()*D6^2)/4)*I13 -> 50.26548246 | K13: =((PI()*D6^2)/4)*(I13-1) -> 0 | L13: ='Cost sheet'!K540 -> 606738.2422
B19: · All blue fields must be entered (required).

Sheet O&M input
B1: Residual treatment costs
B2: Treatment Costs - O&M
B4: O&M Input
C6: Labor Requirements for Residuals Management: | G6: Power:
C7: Operator | D7: 1 | E7: FTE | G7: Average power costs | I7: 0.1225 | J7: $/kWh
C9: Supervisor | D9: 1 | E9: FTE | G9: Disposal:
G10: Average transport distance | I10: 50 | J10: mile
C11: Maintenance worker | D11: 0 | E11: FTE
G12: Maintenance budget | I12: 3 | J12: % of capital costs
C14: Assumptions | G14: Labor cost | H14: Disposal cost | I14: Power cost | J14: Polymer cost | K14: Maintenance | L14: Total cost
C15: Labor salaries:
C16: Operator | D16: 40000 | E16: $/yr
C17: Supervisor | D17: 55000 | E17: $/yr | G17: ($/year) | H17: ($/year) | I17: ($/year) | J17: ($/year) | K17: ($/year) | L17: ($/year)
C18: Maintenance worker | D18: 50000 | E18: $/yr | G18: =((D7*D16)+(D9*D17)+(D11*D18))*D19 -> 161500 | H18: =(I10*D20+D21)*(Cost_Input!D9/2000)/('O&M input'!D22/100)*365 -> 42695.875 | I18: ='Cost sheet'!F561 -> 39929.41625 | J18: =(3*Cost_Input!D9/2000+8*Cost_Input!D9/2000)*D23*365 -> 4095.3 | K18: =(I12/100*'Total Costs'!D10) -> 351787.1223 | L18: =SUM(G18:K18) -> 600007.7136
C19: Multiplier for Burdened Wages | D19: 1.7
C20: Trucking cost | D20: 0.25 | E20: $/(mile-ton)
C21: Average tipping fee | D21: 34.29 | E21: $/truck
C22: Dewatered cake concentration | D22: =IF(Cost_Input!D11,50,20) -> 20 | E22: percent solids
C23: Polymer cost | D23: 2.04 | E23: $/lb
B27: · All blue fields must be entered (required).

Sheet Total Costs
B1: Residual treatment costs
B2: Treatment Costs
B4: Total Costs
D5: Capital Costs
C6: Dewatering | D6: =Centrifuge!$K$12+Centrifuge!$K$28 -> 8413713.64
C7: Thickening | D7: =Thickener!$O$16 -> 2705785.529
C8: SFBW Equalization | D8: 0
C9: SFBW Clarification | D9: ='SFBW Clarifier'!$L$13 -> 606738.2422
C10: Total Capital Costs | D10: =SUM(D6:D9) -> 11726237.41
C12: Period for Annualized Costs | D12: 20 | E12: yrs
C13: Interest Rate | D13: 5 | E13: %
C15: Annualized Capital Costs | D15: =(D13/100)*(1+D13/100)^D12/((1+D13/100)^D12-1)*D10 -> 940943.6279
C16: O&M Costs | D16: ='O&M input'!L18 -> 600007.7136
C17: Total Annual Costs | D17: =SUM(D15:D16) -> 1540951.341 | H17: Schematic
B20: Associated Carbon Emissions
C21: Power Consumption | D21: =('Cost sheet'!F561/'Cost sheet'!D545)*0.000718 -> 234.0352724 | E21: metric tons CO2/year
C22: Transportation | D22: =('Cost sheet'!D564*'Cost sheet'!D565)*365*Assumptions!C156 -> 13.81485348 | E22: metric tons CO2/year
C23: Total Annual Carbon Emissions | D23: =SUM(D21:D22) -> 247.8501259 | E23: metric tons CO2/year

Sheet Cost sheet
B1: Cost Breakdown
B3: Color Legend
C4: Input cell - values are hand-entered
C5: Value calculated on this worksheet
C6: Value copied from another cell on this worksheet
C7: Value copied or calculated from "Assumptions" tab - reference number in Column A refers to row number of data location on "Assumptions" worksheet
D8: ='SFBW EQ'!$L$16 -> 1749341.53
B9: Construction Costs
D10: TOTAL
B11: COMPONENT NO. | C11: DESCRIPTION | D11: COST
B14: 1 | C14: Thickener | D14: =K126 -> 2081373.484
B15: 2 | C15: Day Tank | D15: =K187 -> 1409810.118
B16: 3 | C16: Dewatering | D16: =K300 -> 5062277.298
B17: 4 | C17: SFBW EQ | D17: =K476 -> 1345647.33
B18: 5 | C18: SFBW Clarifier | D18: =K538 -> 466721.7248
B19: Total | D19: =SUM(D14:D18) -> 10365829.95
B21: Project Costs
D22: TOTAL
B23: COMPONENT NO. | C23: DESCRIPTION | D23: COST
B26: 1 | C26: Thickener | D26: =K127 -> 624412.0451
B27: 2 | C27: Day Tank | D27: =K188 -> 422943.0353
B28: 3 | C28: Dewatering | D28: =K301 -> 1518683.189
B29: 4 | C29: SFBW EQ | D29: =K477 -> 403694.1991
B30: 5 | C30: SFBW Clarifier | D30: =K539 -> 140016.5174
B31: Total | D31: =SUM(D26:D30) -> 3109748.986
B33: Total Capital Costs
D34: TOTAL
B35: COMPONENT NO. | C35: DESCRIPTION | D35: COST
B38: 1 | C38: Thickener | D38: =K128 -> 2705785.529
B39: 2 | C39: Day Tank | D39: =K189 -> 1832753.153
B40: 3 | C40: Dewatering | D40: =K302 -> 6580960.487
B41: 4 | C41: SFBW EQ | D41: =K478 -> 1749341.53
B42: 5 | C42: SFBW Clarifier | D42: =K540 -> 606738.2422
B43: Total | D43: =SUM(D38:D42) -> 13475578.94
B45: Annual O&M Costs
D46: TOTAL
B47: COMPONENT NO. | C47: DESCRIPTION | D47: COST
B50: 1 | C50: Power | D50: =F561 -> 39929.41625
B51: 2 | C51: Cake Disposal | D51: =D569 -> 42695.875
B52: 3 | C52: Chemical Use | D52: =D578 -> 6021.160136
B53: 4 | C53: Labor | D53: =D589 -> 161500
B54: 5 | C54: Maintenance/Replacement | D54: =D600 -> 71587.26645
B55: Total | D55: =SUM(D50:D54) -> 321733.7178
B57: Specific Assumptions
B58: Thickener | C58: Thickener diameter | D58: =Thickener!D6 -> 40 | E58: ft
C59: # of thickeners | D59: =Thickener!K16 -> 1
C60: Thickener side wall depth | D60: =Thickener!D13 -> 15 | E60: ft
C62: Clarifier Blowdown Pumping Capacity | D62: =Cost_Input!D9*0.012+24.292 -> 36.292 | E62: gpm
C63: Thickened Solids Pumping Capacity | D63: =Cost_Input!D9*0.008 -> 8 | E63: gpm
C64: Thickener Overflow Pumping Capacity | D64: =Cost_Input!D9*0.0219+22.575 -> 44.475 | E64: gpm
C65: # of Clarifier Blowdown Pumps | D65: 2
C66: # of Thickened Solids Pumps | D66: 2
C67: # of Thickener Overflow Pumps | D67: 2
C68: Clarifier Blowdown Capacity per Pump | D68: =D62/(D65-1) -> 36.292 | E68: gpm
C69: Thickened Solids Capacity per Pump | D69: =D63/(D66-1) -> 8 | E69: gpm
C70: Thickener Overflow Capacity per Pump | D70: =D64/(D67-1) -> 44.475 | E70: gpm
B72: Common Assumptions
B73: Thickener | C73: =Assumptions!C103 -> Site Work | D73: =Assumptions!D103 -> 0.08
C74: =Assumptions!C104 -> Yard Piping | D74: =Assumptions!D104 -> 0.21
C75: =Assumptions!C105 -> Final Grading | D75: =Assumptions!D105 -> 0.01
C77: =Assumptions!C5 -> basin side wall and bottom thickness | D77: =Assumptions!D5 -> 1 | E77: =Assumptions!E5 -> ft
C78: =Assumptions!C6 -> cone slope | D78: =Assumptions!D6 -> 0.25 | E78: =Assumptions!E6 -> ft/ft
C79: =Assumptions!C7 -> % of side wall depth under ground | D79: =Assumptions!D7 -> 0.5
C80: =Assumptions!C8 -> Excavation extended past perimeter | D80: =Assumptions!D8 -> 5 | E80: =Assumptions!E8 -> ft
C81: =Assumptions!C9 -> Excavation extended past bottom depth | D81: =Assumptions!D9 -> 5 | E81: =Assumptions!E9 -> ft
C82: =Assumptions!$C$16 -> Concrete | D82: =Assumptions!$E$16 -> 650 | E82: =Assumptions!$D$16 -> CY
C83: =Assumptions!$C$17 -> Excavation | D83: =Assumptions!$E$17 -> 30 | E83: =Assumptions!$D$17 -> CY
C84: =Assumptions!C19 -> Mechanical Sludge Collector | D84: =Assumptions!E19 -> 966.39 | E84: =Assumptions!F19 -> per LF plus | F84: =Assumptions!G19 -> 17595
C85: Clarifier Blowdown Pumping Cost | D85: =VLOOKUP(D68,Assumptions!$D$26:$I$39,3,TRUE) -> 5826 | E85: EA
C86: Thickened Solids Pumping Cost | D86: =VLOOKUP(D69,Assumptions!$D$42:$I$43,3,TRUE) -> 9900 | E86: EA
C87: Thickener Overflow Pumping Cost | D87: =VLOOKUP(D70,Assumptions!$D$26:$I$39,3,TRUE) -> 5826 | E87: EA
C88: Clarifier Blowdown Pumping Space | D88: =VLOOKUP(D68,Assumptions!$D$26:$I$39,4,TRUE) -> 85 | E88: ft2
C89: Thickened Solids Pumping Space | D89: =VLOOKUP(D69,Assumptions!$D$42:$I$43,4,TRUE) -> 300 | E89: ft2
C90: Thickener Overflow Pumping Space | D90: =VLOOKUP(D70,Assumptions!$D$26:$I$39,4,TRUE) -> 85 | E90: ft2
C91: Additional Pump Station Space | D91: =SUM(VLOOKUP(D68,Assumptions!$D$26:$I$39,5,TRUE),VLOOKUP(D69,Assumptions!$D$26:$I$39,5,TRUE),VLOOKUP(D70,Assumptions!$D$26:$I$39,5,TRUE)) -> 750 | E91: ft2
C92: =Assumptions!C21 -> Pump Station/Building | D92: =Assumptions!E21 -> 250 | E92: =Assumptions!D21 -> SF
C93: Polymer System Size | D93: =Thickener!D17*Thickener!J16/2000/24 -> 0.125 | E93: lb/hr
C94: Polymer System Cost | D94: =((D93/3.583)^0.6)*168349 -> 22480.62928 | E94: LS
C96: =Assumptions!C95 -> Piping | D96: =Assumptions!D95 -> 0.1
C97: =Assumptions!C93 -> Electrical | D97: =Assumptions!D93 -> 0.15
C98: =Assumptions!$C$94 -> Instrumentation and Controls | D98: =Assumptions!$D$94 -> 0.15
C99: =Assumptions!C92 -> Labor/Installation | D99: =Assumptions!D92 -> 0.3 | E99: =Assumptions!E92 -> equipment/item cost
C101: =Assumptions!$C$109 -> Construction Contingency Costs | D101: =Assumptions!$G$109 -> 0.25
C102: =Assumptions!$C$110 -> Non-Construction Costs | D102: =Assumptions!$G$110 -> 0.3
C103: =Assumptions!$C$111 -> Indirect Construction Costs | D103: =Assumptions!$G$111 -> 0.3
B106: Thickener Quantity and Cost Calcualtions
F107: MATERIAL | G107: TOTAL | H107: LABOR | I107: TOTAL | J107: TOTAL | K107: TOTAL
B108: ITEM NO. | C108: DESCRIPTION | D108: UNIT | E108: QUANTITY | F108: COST | G108: MATERIAL | H108: COST | I108: LABOR | J108: UNIT | K108: COST
F109: UNIT | G109: COST | H109: UNIT | I109: COST | J109: COST
B111: 1 | C111: General | D111: LS | K111: =(D73+D74+D75)*SUM(K112:K120) -> 227368.9741
B112: =B111+1 -> 2 | C112: Excavation | D112: CY | E112: =$D$59*(PI()*($D$58/2+$D$80)^2*$D$60*$D$79+1/3*PI()*($D$58/2+$D$80)^2*($D$78*($D$58/2)+$D$81))/27 -> 787.8222318 | F112: =D83 -> 30 | G112: =E112*F112 -> 23634.66695 | H112: =F112*$D$99 -> 9 | I112: =E112*H112 -> 7090.400086 | J112: =H112+F112 -> 39 | K112: =E112*J112 -> 30725.06704
B113: =B112+1 -> 3 | C113: Concerete | D113: CY | E113: =$D$59*((PI()/4*($D$58+2*$D$77)^2-PI()/4*($D$58)^2)*$D$60+PI()*($D$58/2)*SQRT(($D$58/2)^2+($D$58/2*$D$78)^2)*$D$77)/27 -> 119.5330117 | F113: =D82 -> 650 | G113: =E113*F113 -> 77696.45761 | H113: =F113*$D$99 -> 195 | I113: =E113*H113 -> 23308.93728 | J113: =H113+F113 -> 845 | K113: 101005.3949
B114: =B113+1 -> 4 | C114: Mechanical Sludge Collector | D114: EA | E114: =D59 -> 1 | J114: =D84*D58+F84 -> 56250.6 | K114: 56250.6
B115: =B114+1 -> 5 | C115: Pumps (Clarifier Blowdown to Thickeners) | D115: EA | E115: =D65 -> 2 | F115: =D85 -> 5826 | G115: =E115*F115 -> 11652 | H115: =F115*$D$99 -> 1747.8 | I115: =E115*H115 -> 3495.6 | J115: =H115+F115 -> 7573.8 | K115: 15147.6
B116: =B115+1 -> 6 | C116: Pumps (Thickened Solids to Day Tanks) | D116: EA | E116: =D66 -> 2 | F116: =D86 -> 9900 | G116: =E116*F116 -> 19800 | H116: =F116*$D$99 -> 2970 | I116: =E116*H116 -> 5940 | J116: =H116+F116 -> 12870 | K116: 25740
B117: =B116+1 -> 7 | C117: Pumps (Thickener Overflow to Recycle) | D117: EA | E117: =D67 -> 2 | F117: =D87 -> 5826 | G117: =E117*F117 -> 11652 | H117: =F117*$D$99 -> 1747.8 | I117: =E117*H117 -> 3495.6 | J117: =H117+F117 -> 7573.8 | K117: 15147.6
B118: 8 | C118: Polymer Feed System | D118: LS | E118: 1 | J118: =IF(ISERROR(D94),0,D94) -> 22480.62928 | K118: 22480.62928
B119: 9 | C119: Pump Station/Building | D119: SF | E119: =E115*D88+E116*D89+E117*D90+D91 -> 1690 | J119: =D92 -> 250 | K119: 422500
B120: 10 | C120: Piping | D120: LS | K120: =SUM(K112:K119)*D96 -> 68899.68912
B121: 11 | C121: Electrical | D121: LS | K121: =SUM(K111:K120)*D97 -> 147789.8332
B122: 12 | C122: Instrumentation & Controls | D122: LS | K122: =D98*SUM(K111:K120) -> 147789.8332
B123: =B122+1 -> 13 | C123: Construction Contingency | D123: LS | K123: =D101*SUM(K111:K122) -> 320211.3052
C124: Direct Construction Costs | K124: =SUM(K111:K123) -> 1601056.526
C125: Indirect Construction Costs | K125: =K124*D103 -> 480316.9578
C126: Construction Costs | K126: =K125+K124 -> 2081373.484
C127: Non-Construction Costs | K127: =K126*D102 -> 624412.0451
C128: Total Capital Costs | K128: =K126+K127 -> 2705785.529
B130: DAY TANK
B131: Specific Assumptions
C132: Day Tank Diameter | D132: ='Belt filter press'!D6 -> 20 | E132: ft
C133: # of Day Tanks | D133: ='Belt filter press'!H12 -> 1
C134: Day Tank Side Wall Depth | D134: ='Belt filter press'!D8 -> 20 | E134: ft
C136: Thickened Solids Pumping Capacity | D136: =0.0005*'Belt filter press'!G12+69.826 -> 70.40933333 | E136: gpm
C137: # of Thickened Solids Pumps | D137: =D309 -> 2
C138: Thickened Solids Capacity per Pump | D138: =D136/(D137) -> 35.20466667
B140: Common Assumptions
C141: =Assumptions!$C$103 -> Site Work | D141: =Assumptions!$D$103 -> 0.08
C142: =Assumptions!$C$104 -> Yard Piping | D142: =Assumptions!$D$104 -> 0.21
C143: =Assumptions!$C$105 -> Final Grading | D143: =Assumptions!$D$105 -> 0.01
C145: =Assumptions!C5 -> basin side wall and bottom thickness | D145: =Assumptions!D5 -> 1 | E145: =Assumptions!E5 -> ft
C146: =Assumptions!C6 -> cone slope | D146: =Assumptions!D6 -> 0.25 | E146: =Assumptions!E6 -> ft/ft
C147: =Assumptions!C7 -> % of side wall depth under ground | D147: =Assumptions!D7 -> 0.5
C148: =Assumptions!C8 -> Excavation extended past perimeter | D148: =Assumptions!D8 -> 5 | E148: =Assumptions!E8 -> ft
C149: =Assumptions!C9 -> Excavation extended past bottom depth | D149: =Assumptions!D9 -> 5 | E149: =Assumptions!E9 -> ft
C151: =Assumptions!$C$16 -> Concrete | D151: =Assumptions!$E$16 -> 650 | E151: =Assumptions!$D$16 -> CY
C152: =Assumptions!$C$17 -> Excavation | D152: =Assumptions!$E$17 -> 30 | E152: =Assumptions!$D$17 -> CY
C153: Thickened Solids Pumping Cost | D153: =VLOOKUP(D138,Assumptions!$D$42:$I$43,3,TRUE) -> 9900 | E153: EA
C154: Thickened Solids Pumping Space | D154: =VLOOKUP(D138,Assumptions!$D$42:$I$43,4,TRUE) -> 300 | E154: SF
C155: Additional Pump Station Space | D155: =VLOOKUP(D138,Assumptions!$D$42:$I$43,5,TRUE) -> 500 | E155: SF
C156: =Assumptions!C21 -> Pump Station/Building | D156: =Assumptions!E21 -> 250 | E156: =Assumptions!D21 -> SF
C157: Mixer Cost | D157: =Assumptions!E18 -> 1103.3 | E157: per LF
C158: Aluminum Cover Cost | D158: =Assumptions!E20 -> 2714.3 | E158: =Assumptions!F20 -> per LF minus | F158: =Assumptions!G20 -> 20143
C160: =Assumptions!$C$95 -> Piping | D160: =Assumptions!$D$95 -> 0.1
C161: =Assumptions!$C$93 -> Electrical | D161: =Assumptions!$D$93 -> 0.15
C162: =Assumptions!$C$94 -> Instrumentation and Controls | D162: =Assumptions!$D$94 -> 0.15
C163: =Assumptions!$C$92 -> Labor/Installation | D163: =Assumptions!$D$92 -> 0.3 | E163: =Assumptions!$E$92 -> equipment/item cost
C165: =Assumptions!$C$109 -> Construction Contingency Costs | D165: =Assumptions!$G$109 -> 0.25
C166: =Assumptions!$C$110 -> Non-Construction Costs | D166: =Assumptions!$G$110 -> 0.3
C167: =Assumptions!$C$111 -> Indirect Construction Costs | D167: =Assumptions!$G$111 -> 0.3
B169: Day Tank Quantity and Cost Calcualtions
B170: ITEM NO. | C170: DESCRIPTION | D170: UNIT | E170: QUANTITY | F170: MATERIAL | G170: TOTAL | H170: LABOR | I170: TOTAL | J170: TOTAL | K170: TOTAL
F171: COST | G171: MATERIAL | H171: COST | I171: LABOR | J171: UNIT | K171: COST
F172: UNIT | G172: COST | H172: UNIT | I172: COST | J172: COST
B174: 1 | C174: General | D174: LS | K174: =(D141+D142+D143)*SUM(K175:K181) -> 154007.4776
B175: =B174+1 -> 2 | C175: Excavation | D175: CY | E175: =$D$133*(PI()*($D$132/2+$D$148)^2*$D$134*$D$147+1/3*PI()*($D$132/2+$D$148)^2*($D$146*($D$132/2)+$D$149))/27 -> 327.2492347 | F175: =D152 -> 30 | G175: =E175*F175 -> 9817.477042 | H175: =F175*$D$163 -> 9 | I175: =H175*E175 -> 2945.243113 | J175: =F175+H175 -> 39 | K175: =J175*E175 -> 12762.72016
B176: 3 | C176: Concerete | D176: CY | E176: =$D$133*((PI()/4*($D$132+2*$D$145)^2-PI()/4*($D$132)^2)*$D$134+PI()*($D$132/2)*SQRT(($D$132/2)^2+($D$132/2*$D$146)^2)*$D$145)/27 -> 60.86284715 | F176: =D151 -> 650 | G176: =E176*F176 -> 39560.85065 | H176: =F176*$D$163 -> 195 | I176: =H176*E176 -> 11868.25519 | J176: =F176+H176 -> 845 | K176: 51429.10584
B177: 4 | C177: Aluminum Covers | D177: EA | E177: =D133 -> 1 | F177: =D158*D132-F158 -> 34143 | G177: =E177*F177 -> 34143 | H177: =F177*$D$163 -> 10242.9 | I177: =H177*E177 -> 10242.9 | J177: =F177+H177 -> 44385.9 | K177: 44385.9
B178: 5 | C178: Pumps to Centrifuge | D178: EA | E178: =D137 -> 2 | F178: =D153 -> 9900 | G178: =E178*F178 -> 19800 | H178: =F178*$D$163 -> 2970 | I178: =H178*E178 -> 5940 | J178: =F178+H178 -> 12870 | K178: 25740
B179: 6 | C179: Pump Station/Building | D179: SF | E179: =D154*E178+D155 -> 1100 | J179: =D156 -> 250 | K179: 275000
B180: 7 | C180: Mixers | D180: EA | E180: 2 | F180: =D157*D132:D132 -> 22066 | G180: =E180*F180 -> 44132 | H180: =F180*$D$163 -> 6619.8 | I180: =H180*E180 -> 13239.6 | J180: =F180+H180 -> 28685.8 | K180: 57371.6
B181: 8 | C181: Piping | D181: LS | K181: =D160*SUM(K175:K180) -> 46668.9326
B182: 9 | C182: Electrical | D182: LS | K182: =D161*SUM(K174:K181) -> 100104.8604
B183: 10 | C183: Instrumentaion & Controls | D183: LS | K183: =D162*SUM(K174:K181) -> 100104.8604
B184: 11 | C184: Construction Contingency | D184: LS | K184: =D165*SUM(K174:K183) -> 216893.8643
C185: Direct Construction Costs | K185: =SUM(K174:K184) -> 1084469.321
C186: Indirect Construction Costs | K186: =D167*K185 -> 325340.7964
C187: Construction Costs | K187: =K186+K185 -> 1409810.118
C188: Non-Construction Costs | K188: =D166*K187 -> 422943.0353
C189: Total Capital Costs | K189: =K187+K188 -> 1832753.153
B193: Centrifuge
B194: Lime Softening
B195: Specific Assumptions | C195: Total centrifuge capacity | D195: =Centrifuge!G28 -> 175 | E195: lb/hr
C196: # of Centrifuges | D196: =Centrifuge!E20 -> 2
C197: Loading per Centrifuge | D197: =Centrifuge!I28 -> 17.31481481 | E197: gpm
C199: Centrate Pumping Capacity | D199: =Cost_Input!$D$9*0.007 -> 7 | E199: gpm
C200: # of Centrate Pumps | D200: 2 | E200: gpm
C201: Centrate Pump Capacity per Pump | D201: =D199/(D200) -> 3.5 | E201: gpm
B203: Common Assumptions
C204: =Assumptions!$C$103 -> Site Work | D204: =Assumptions!$D$103 -> 0.08
C205: =Assumptions!$C$104 -> Yard Piping | D205: =Assumptions!$D$104 -> 0.21
C206: =Assumptions!$C$105 -> Final Grading | D206: =Assumptions!$D$105 -> 0.01
C208: Centrifuge Cost | D208: =VLOOKUP(D197,Assumptions!$D$59:$I$64,3,TRUE) -> 220000 | E208: EA
C209: Centrifuge Space | D209: =VLOOKUP(D197,Assumptions!$D$59:$I$64,4,TRUE) -> 500 | E209: SF/centrifuge
C210: Control/Electrical Room | D210: 1000 | E210: SF
C211: Classifier Area | D211: =Assumptions!F15 -> 0 | E211: SF/centrifuge
C212: Truck Loading Area | D212: =Assumptions!M24*Assumptions!F16 -> 0 | E212: SF
C213: Centrate Pumping Cost | D213: =VLOOKUP(D201,Assumptions!$D$26:$I$39,3,TRUE) -> 5826 | E213: EA
C214: Centrate Pumping Space | D214: =VLOOKUP(D201,Assumptions!$D$26:$I$39,4,TRUE) -> 85 | E214: SF/pump
C215: Additional Pump Station Space | D215: =VLOOKUP(D201,Assumptions!$D$26:$I$39,5,TRUE) -> 250 | E215: SF
C216: =Assumptions!C23 -> Dewatering Building | D216: =Assumptions!E23 -> 350 | E216: =Assumptions!D23 -> SF
C218: =Assumptions!C40 -> 0 | D218: =Assumptions!$D$95 -> 0.1
C219: =Assumptions!C38 -> Goulds 3180 14x16-22XL | D219: =Assumptions!$D$93 -> 0.15
C220: =Assumptions!$C$94 -> Instrumentation and Controls | D220: =Assumptions!$D$94 -> 0.15
C221: =Assumptions!C37 -> Goulds 3180 12x14-19XL | D221: =Assumptions!$D$92 -> 0.3 | E221: =Assumptions!E37 -> 5005
C223: =Assumptions!$C$109 -> Construction Contingency Costs | D223: =Assumptions!$G$109 -> 0.25
C224: =Assumptions!$C$110 -> Non-Construction Costs | D224: =Assumptions!$G$110 -> 0.3
C225: =Assumptions!$C$111 -> Indirect Construction Costs | D225: =Assumptions!$G$111 -> 0.3
B227: Centrifuge Quantity and Cost Calcualtions
F228: MATERIAL | G228: TOTAL | H228: LABOR | I228: TOTAL | J228: TOTAL | K228: TOTAL
B229: ITEM NO. | C229: DESCRIPTION | D229: UNIT | E229: QUANTITY | F229: COST | G229: MATERIAL | H229: COST | I229: LABOR | J229: UNIT | K229: COST
F230: UNIT | G230: COST | H230: UNIT | I230: COST | J230: COST
B232: 1 | C232: General | D232: LS | K232: =(D204+D205+D206)*SUM(K233:K236) -> 473268.708
B233: =B232+1 -> 2 | C233: Centrifuges | D233: EA | E233: =D196 -> 2 | F233: =D208 -> 220000 | G233: =F233*E233 -> 440000 | H233: =F233*$D$278 -> 66000 | I233: =H233*E233 -> 132000 | J233: =H233+F233 -> 286000 | K233: =J233*E233 -> 572000
B234: 3 | C234: Building | D234: SF | E234: =D209*D196+D210+D211*D196+D212+D214*D200+D215 -> 2420 | J234: =D216 -> 350 | K234: =J234*E234 -> 847000
B235: 4 | C235: Pumps (centrate recycle) | D235: EA | E235: =D200 -> 2 | F235: =D213 -> 5826 | G235: =F235*E235 -> 11652 | H235: =F235*$D$278 -> 1747.8 | I235: =H235*E235 -> 3495.6 | J235: =H235+F235 -> 7573.8 | K235: =J235*E235 -> 15147.6
B236: 5 | C236: Piping | D236: LS | K236: =D218*SUM(K233:K235) -> 143414.76
B237: 6 | C237: Electrical | D237: LS | K237: =D219*SUM(K232:K236) -> 307624.6602
B238: 7 | C238: Instrumentation & Control | D238: LS | K238: =D220*SUM(K232:K236) -> 307624.6602
B239: 8 | C239: Construction Contingency | D239: LS | K239: =D223*SUM(K232:K238) -> 666520.0971
C240: Direct Construction Costs | K240: =SUM(K232:K239) -> 3332600.486
... 298 more rows

Sheet Assumptions
A1: Ref No.
A2: 2 | B2: Design Assumptions
A3: =A2+1 -> 3
A4: 4 | B4: Tanks
A5: 5 | C5: basin side wall and bottom thickness | D5: 1 | E5: ft
A6: 6 | C6: cone slope | D6: =3/12 -> 0.25 | E6: ft/ft
A7: 7 | C7: % of side wall depth under ground | D7: 0.5
A8: 8 | C8: Excavation extended past perimeter | D8: 5 | E8: ft
A9: 9 | C9: Excavation extended past bottom depth | D9: 5 | E9: ft
A10: 10
A11: 11
A12: 12
A13: 13
A14: 14 | B14: Unit Costs
A15: 15 | C15: Item | D15: Unit | E15: Unit Cost
A16: 16 | C16: Concrete | D16: CY | E16: 650
A17: 17 | C17: Excavation | D17: CY | E17: 30
A18: 18 | C18: Mixers | D18: LF | E18: 1103.3 | F18: per LF plus | G18: 20347
A19: 19 | C19: Mechanical Sludge Collector | D19: LF | E19: 966.39 | F19: per LF plus | G19: 17595
A20: 20 | C20: Aluminum Cover | E20: 2714.3 | F20: per LF minus | G20: 20143
A21: 21 | C21: Pump Station/Building | D21: SF | E21: 250
A22: 22 | C22: Tubes | D22: SF | E22: 126
A23: 23 | C23: Dewatering Building | D23: SF | E23: 350
A24: 24
A25: 25 | B25: Centrifigual Pumps | D25: Lower Limit (gpm) | E25: Upper Limit (gpm) | F25: Pump Cost ($) | G25: Space Required per Pump (ft2) | H25: Additional Space Required per Station (ft2) | I25: hp | K25: Ref No.
A26: 26 | C26: Goulds 3196 1x1.5-8 STX | D26: 1 | E26: 70 | F26: 5826 | G26: 85 | H26: 250 | I26: 1.5 | K26: =A26 -> 26
A27: 27 | C27: Goulds 3196 3x4-8G | D27: 70 | E27: 125 | F27: 8361 | G27: 100 | H27: 350 | I27: 3 | K27: 27
A28: 28 | C28: Goulds 3196 3x4-8G | D28: 125 | E28: 275 | F28: 8361 | G28: 100 | H28: 350 | I28: 5 | K28: 28
A29: 29 | C29: Goulds 3196 3x4-8 | D29: 275 | E29: 450 | F29: 9259 | G29: 100 | H29: 350 | I29: 7.5 | K29: 29
A30: 30 | C30: Goulds 3196 3x4-8 | D30: 450 | E30: 550 | F30: 9259 | G30: 100 | H30: 350 | I30: 10 | K30: 30
A31: 31 | C31: Goulds 3196 6x8-13 | D31: 550 | E31: 900 | F31: 19722 | G31: 125 | H31: 500 | I31: 15 | K31: 31
A32: 32 | C32: Goulds 3196 6x8-13 | D32: 900 | E32: 1200 | F32: 19722 | G32: 125 | H32: 500 | I32: 20 | K32: 32
A33: 33 | C33: Goulds 3196 6x8-13 | D33: 1200 | E33: 1500 | F33: 19722 | G33: 125 | H33: 500 | I33: 25 | K33: 33
A34: 34 | C34: Goulds 3196 8x10-13 | D34: 1500 | E34: 2000 | F34: 24765 | G34: 125 | H34: 750 | I34: 30 | K34: 34
A35: =A34+1 -> 35 | C35: Goulds 3196 8x10-13 | D35: 2000 | E35: 2300 | F35: 24765 | G35: 125 | H35: 750 | I35: 40 | K35: 35
A36: 36 | C36: Goulds 3196 8x10-16HX17 | D36: 3295 | E36: 3305 | F36: 29680 | G36: 125 | H36: 750 | I36: 50 | K36: 36
A37: 37 | C37: Goulds 3180 12x14-19XL | D37: 4995 | E37: 5005 | F37: 48453 | G37: 150 | H37: 1000 | I37: 75 | K37: 37
A38: 38 | C38: Goulds 3180 14x16-22XL | D38: 7995 | E38: 8005 | F38: 64092 | G38: 175 | H38: 1250 | I38: 125 | K38: 38
A39: 39 | C39: Goulds 3180 18x18-22XL | D39: 12495 | E39: 12505 | F39: 73812 | G39: 200 | H39: 1500 | I39: 200 | K39: 39
A40: 40
A41: 41 | B41: Progressive Cavity Pumps | D41: Lower Limit (gpm) | E41: Upper Limit (gpm) | F41: Pump Cost ($) | G41: Space Required per Pump (ft2) | H41: Additional Space Required per Station (ft2) | I41: hp | K41: Ref No.
A42: 42 | C42: Netzsch 6x6 | D42: 1 | E42: 200 | F42: 9900 | G42: 300 | H42: 500 | I42: 10 | K42: =A42 -> 42
A43: 43 | C43: Netzsch 6x8 | D43: 200 | E43: 600 | F43: 27800 | G43: 350 | H43: 750 | I43: 40 | K43: =A43 -> 43
A44: 44
A45: 45 | B45: Centrifuges - Coagulant | D45: Lower Limit (gpm) | E45: Upper Limit (gpm) | F45: Centrifuge Cost ($) | G45: Space Required per Centrifuge (ft2) | H45: Additional Space Required per Station (ft2) | I45: hp | K45: Ref No.
A46: 46 | C46: 30 | D46: 0 | E46: 30 | F46: 80000 | G46: 400 | H46: =2000 -> 2000 | I46: 25 | K46: =A46 -> 46
A47: 47 | C47: 406 | D47: 30 | E47: 50 | F47: 220000 | G47: 500 | H47: =2000 -> 2000 | I47: 30 | K47: 47
A48: 48 | C48: 506 | D48: 60 | E48: 100 | F48: 260000 | G48: 600 | H48: =2000 -> 2000 | I48: 50 | K48: 48
A49: 49 | C49: 556 | D49: 110 | E49: 150 | F49: 365000 | G49: 750 | H49: =2000 -> 2000 | I49: 90 | K49: 49
A50: 50 | C50: 606 | D50: 160 | E50: 210 | F50: 450000 | G50: 1000 | H50: =2000 -> 2000 | I50: 110 | K50: 50
A51: 51 | C51: 656 | D51: 220 | E51: 270 | F51: 550000 | G51: 1400 | H51: =2000 -> 2000 | I51: 125 | K51: 51
A52: 52 | C52: 656 | D52: 271 | E52: 350 | F52: 550000 | G52: 1400 | H52: =2000 -> 2000 | I52: 150
A53: 53 | C53: 706 | D53: 351 | E53: 450 | F53: 750000 | G53: 1600 | H53: =2000 -> 2000 | I53: 230
A54: 54 | C54: 1006 | D54: 451 | E54: 650 | F54: 1800000 | G54: 2000 | H54: =2000 -> 2000 | I54: 400
A55: 55 | C55: 1006 | D55: 750 | E55: 900 | F55: 1800000 | G55: 2000 | H55: =2000 -> 2000 | I55: 600
A56: 56
A57: 57
A58: 58 | B58: Centrifuges - Lime Softening | D58: Lower Limit (lb/hr) | E58: Upper Limit (lb/hr) | F58: Centrifuge Cost ($) | G58: Space Required per Centrifuge (ft2) | H58: Additional Space Required per Station (ft2) | I58: hp | K58: Ref No. | S58: Belt Filter | U58: Lower Limit (gpm) | V58: Upper Limit (gpm) | W58: Centrifuge Cost ($) | X58: Space Required per Belt Filter (ft2) | Y58: Additional Space Required per Station (ft2) | AA58: Plate and frame filter press | AC58: Lower Limit (lb/hr) | AD58: Upper Limit (lb/hr) | AE58: Centrifuge Cost ($) | AF58: Space Required per Filter Press (ft2) | AG58: Additional Space Required per Station (ft2)
A59: 59 | C59: ALDEC 406G2 | D59: 0 | E59: 750 | F59: 220000 | G59: 500 | H59: 4500 | I59: =30+7.5 -> 37.5 | K59: =A59 -> 59 | T59: 1.0 Meter | U59: 0 | V59: 75 | W59: 290000 | X59: 370 | Y59: 4500 | AB59: 2250 | AC59: 0 | AD59: 1125 | AE59: 200000 | AF59: 350 | AG59: 4500
A60: 60 | C60: ALDEC 506G2 | D60: 750 | E60: 1500 | F60: 260000 | G60: 600 | H60: 4500 | I60: =30+7.5 -> 37.5 | K60: 60 | T60: 1.5 Meter | U60: 75 | V60: 110 | W60: 305000 | X60: 410 | Y60: 4500 | AB60: 4500 | AC60: 1125 | AD60: 2250 | AE60: 300000 | AF60: 470 | AG60: 4500
A61: 61 | C61: ALDEC 556G2 | D61: 1500 | E61: 2600 | F61: 365000 | G61: 750 | H61: 4500 | I61: =30+7.5 -> 37.5 | K61: 61 | T61: 2.0 Meter | U61: 110 | V61: 150 | W61: 315000 | X61: 460 | Y61: 4500 | AB61: 6750 | AC61: 2250 | AD61: 3375 | AE61: 450000 | AF61: 560 | AG61: 4500
A62: 62 | C62: ALDEC 602G2 | D62: 2600 | E62: 3700 | F62: 450000 | G62: 1000 | H62: 4500 | I62: =50+10 -> 60 | K62: 62 | T62: 2.5 Meter | U62: 150 | V62: 200 | W62: 500000 | X62: 600 | Y62: 4500 | AB62: 9000 | AC62: 3375 | AD62: 4500 | AE62: 600000 | AF62: 660 | AG62: 4500
A63: 63 | C63: ALDEC 706G2 | D63: 3700 | E63: 6000 | F63: 750000 | G63: 1600 | H63: 4500 | I63: =50+10 -> 60 | K63: 63 | T63: 3.0 Meter | U63: 200 | V63: 250 | W63: 600000 | X63: 670 | Y63: 4500 | AB63: 11250 | AC63: 4500 | AD63: 5625 | AE63: 750000 | AF63: 630 | AG63: 4500
A64: 64 | C64: ALDEC 1006 | D64: 6000 | E64: 12000 | F64: 1500000 | G64: 2000 | H64: 4500 | I64: =100+15 -> 115 | K64: 64 | AB64: 13500 | AC64: 5625 | AD64: 6750 | AE64: 900000 | AF64: 710 | AG64: 4500
A65: 65
A66: 66 | B66: Dewatering Building Sizing Assumptions
A67: 67
A68: 68 | B68: 1 | C68: There is one classifier per centrifuge
A69: 69 | D69: L (ft) | E69: W (ft) | F69: Area (sf)
A70: 70 | B70: 2 | C70: Classifer Area | D70: 30 | E70: 10 | F70: =D70*E70 -> 300
A71: 71 | B71: 3 | C71: Truck Loading Station | D71: 40 | E71: 15 | F71: =D71*E71 -> 600
A72: 72
A73: 73
A74: 74 | C74: Other Areas that have population dependent sizes
A75: 75 | D75: LOW | E75: LOW | F75: LOW | G75: HIGH | H75: HIGH | I75: HIGH
A76: 76 | B76: 5 | C76: Control Rm and Electrical Rm | D76: L (ft) | E76: W (ft) | F76: Area | G76: L (ft) | H76: W (ft) | I76: Area | K76: Truck Loading | L76: # (LOW) | M76: # (HIGH)
A77: 77 | C77: 13k | D77: 20 | E77: 40 | F77: =D77*E77 -> 800 | G77: 20 | H77: 40 | I77: =G77*H77 -> 800 | K77: 13k | L77: 2 | M77: 2
A78: 78 | C78: 30k | D78: 20 | E78: 40 | F78: 800 | G78: 20 | H78: 40 | I78: 800 | K78: 30k | L78: 2 | M78: 2
A79: 79 | C79: 70k | D79: 20 | E79: 40 | F79: 800 | G79: 20 | H79: 40 | I79: 800 | K79: 70k | L79: 2 | M79: 2
A80: =A79+1 -> 80 | C80: 110k | D80: 20 | E80: 50 | F80: 1000 | G80: 20 | H80: 50 | I80: 1000 | K80: 110k | L80: 2 | M80: 2
A81: 81 | C81: 175k | D81: 20 | E81: 50 | F81: 1000 | G81: 20 | H81: 50 | I81: 1000 | K81: 175k | L81: 2 | M81: 2
A82: 82 | C82: 265k | D82: 20 | E82: 50 | F82: 1000 | G82: 20 | H82: 50 | I82: 1000 | K82: 265k | L82: 2 | M82: 2
A83: 83 | C83: 400k | D83: 20 | E83: 60 | F83: 1200 | G83: 20 | H83: 60 | I83: 1200 | K83: 400k | L83: 3 | M83: 3
A84: 84 | C84: 650k | D84: 20 | E84: 60 | F84: 1200 | G84: 20 | H84: 60 | I84: 1200 | K84: 650k | L84: 3 | M84: 3
A85: 85 | C85: 1000k | D85: 20 | E85: 60 | F85: 1200 | G85: 20 | H85: 60 | I85: 1200 | K85: 1000k | L85: 4 | M85: 4
A86: 86
A87: 87 | B87: BW Polymer Costs
A88: 88 | D88: (lb/day) | E88: all | F88: 0.39 | G88: 0.9 | H88: 2.1 | I88: 3.3 | J88: 5.25 | K88: 7.96 | L88: 12.01 | M88: 19.52 | N88: 30.02
A89: 89 | F89: 6318.646495 | G89: 10435.92142 | H89: 17350.69484 | I89: 22755.88124 | J89: 30066.36163 | K89: 38595.18574 | L89: 49546.12075 | M89: 66110.91723 | N89: 100174.6085
A90: 90
A91: 91 | B91: Cost Multipliers
A92: 92 | C92: Labor/Installation | D92: 0.3 | E92: equipment/item cost | N92: Cost Hierarchy
A93: 93 | C93: Electrical | D93: 0.15
A94: 94 | C94: Instrumentation and Controls | D94: 0.15 | O94: Non-percentage based unit costs
A95: 95 | C95: Piping | D95: 0.1 | O95: Excavation
A96: 96 | O96: Concrete
A97: 97 | B97: Cost Scaling Factors | O97: Equipment
A98: 98 | C98: Size Scaling Exponent | D98: 0.6 | O98: Building | Q98: Subtotal
A99: 99 | C99: ENR | D99: 7939
A100: 100 | N100: =C95 -> Piping | O100: =D95 -> 0.1 | Q100: Piping Cost
A101: 101 | Q101: Subtotal
A102: 102 | B102: General Costs
A103: 103 | C103: Site Work | D103: 0.08 | N103: =B102 -> General Costs | O103: =SUM(D103:D105) -> 0.3 | Q103: General Cost
A104: 104 | C104: Yard Piping | D104: 0.21 | Q104: Subtotal
A105: 105 | C105: Final Grading | D105: 0.01
A106: 106 | N106: =C93 -> Electrical | O106: =D93 -> 0.15 | Q106: Electrical Cost
A107: 107 | N107: =C94 -> Instrumentation and Controls | O107: =D94 -> 0.15 | Q107: I&C Cost
A108: 108 | B108: Project Costs Factors | G108: % | Q108: Subtotal
A109: 109 | C109: Construction Contingency Costs | G109: 0.25
A110: 110 | C110: Non-Construction Costs | G110: =SUM(G114:G118) -> 0.3 | N110: =C109 -> Construction Contingency Costs | O110: =G109 -> 0.25 | Q110: Const. Contingency
A111: 111 | C111: Indirect Construction Costs | G111: =G121+G122 -> 0.3 | Q111: Direct Const. Cost
A112: =A111+1 -> 112
A113: 113 | C113: Non-construction costs include | N113: =C111 -> Indirect Construction Costs | O113: =G111 -> 0.3 | Q113: Indirect Const. Cost
A114: 114 | C114: Engineering - Preliminary and Final Design Costs | G114: 0.1 | Q114: Total Construction Cost
A115: 115 | C115: Provider's Administration and Oversight during Design and Construction (Includes Legal Review) | G115: 0.04
A116: 116 | C116: Construction Administration and Inspection Costs - Third Party | G116: 0.1 | N116: =C110 -> Non-Construction Costs | O116: =G110 -> 0.3 | Q116: Non-Construction Costs
A117: 117 | C117: Permitting/Community Outreach | G117: 0.05 | Q117: Total Capital Costs
A118: 118 | C118: Start-Up/Acceptance Testing/Commissioning | G118: 0.01
A119: 119
A120: 120 | C120: Indirect Construction costs include
A121: 121 | C121: Overhead and Profit | G121: 0.25
A122: 122 | C122: Mobilization/Demobilization | G122: 0.05
A123: 123
A124: 124 | C124: Inflation for Present Worth Calculations | G124: 0.06
A125: 125 | C125: Period for Present Worth Calculations | G125: 20 | H125: years
A126: 126
A127: 127 | B127: O&M Cost Assumptions
A128: 128 | B128: O&M Costs consist of labor, disposal, chemical, power and mainteance
A129: 129
A130: 130 | B130: Labor Costs
A131: 131 | C131: Centrifuge Operator | D131: ='O&M input'!D16 -> 40000 | E131: $/year
A132: 132 | C132: Supervisor | D132: ='O&M input'!D17 -> 55000 | E132: $/year
A133: 133 | C133: Maintenance Worker | D133: ='O&M input'!D18 -> 50000 | E133: $/year
A134: 134 | C134: Multiplier for Burdened Wages | D134: 1.7
A135: 135
A136: 136 | B136: Disposal Costs
A137: 137 | C137: Average trip length | D137: ='O&M input'!I10 -> 50 | E137: mile
A138: 138 | C138: Trucking cost (truck + operator) | D138: ='O&M input'!D20 -> 0.25 | E138: $/(mile-ton)
A139: 139 | C139: Average tipping fee | D139: ='O&M input'!D21 -> 34.29 | E139: $/ton
A140: 140
A141: 141 | B141: Power Costs
A142: 142 | C142: Average power cost | D142: ='O&M input'!I7 -> 0.1225 | E142: $/kWh
A143: 143 | C143: Power for mixers | D143: 38 | E143: hp/MG
A144: =A143+1 -> 144 | C144: Power for Mechanical Sludge Collectors | D144: 1 | E144: hp/unit
A145: 145
A146: 146 | B146: Chemical Costs
A147: 147 | C147: Polymer cost | D147: ='O&M input'!D23 -> 2.04 | E147: $/lb
A148: 148 | C148: Sodium Metabisulfite cost | D148: 0.37 | E148: $/lb
A149: 149
A150: 150 | B150: Maintenance Costs
A151: 151 | C151: Maintenance budget | D151: ='O&M input'!I12 -> 3 | E151: % of capital costs
B153: Carbon Footprint
C154: 1293300000000 | D154: ton-miles | E154: in 2005, per BTS Special Report
C155: 391600000 | D155: metric tons CO2 | E155: in 2005, per EPA Inventor of US Greenhouse Gas Emissions and Sinks: 1990-2007
C156: =C155/C154 -> 0.0003027913091 | D156: metric tons CO2/ton mile

Sheet MainMenu
B1: Residual minimization, reuse, and treatment costs
B2: Main Menu
B3: First, enable the macros when you open this tool
G6: What would you like to do today?
B16: Jointly sponsored by Water Research Foundation and U.S. Environmental Protection Agency

Sheet Reuse_button (hidden)

Sheet Reuse_text (hidden)

Sheet Reuse_print

Sheet Reuse_info
B1: Beneficial Reuse
B2: Click a button to select a minimization category to investigate:
I8: Click a gold button to find information about each method

Sheet Reuse_criteria
B1: Beneficial Reuse
B2: Weighting Factors
B4: Criteria | E4: Weighting Factor | I4: Select minimization processes to consider:
B5: Reliability | E5: 0 | M5: FALSE
B6: Flexibility | E6: 0 | M6: FALSE
B7: Permitting and regulatory impacts | E7: 0 | M7: FALSE
B8: Liability | E8: 0 | M8: FALSE
B9: User experience and time in business | E9: 0 | M9: FALSE
B10: Operational complexity | E10: 0 | M10: FALSE
B11: Expandability | E11: 0 | M11: FALSE
B12: On-site land requirements | E12: 0 | M12: FALSE
B13: Compatibility with existing processes | E13: 0 | M13: FALSE
B14: Environmental impacts | E14: 0 | M14: FALSE
B15: Vehicle traffic | E15: 0 | M15: FALSE
B16: Disposal volume | E16: 0 | M16: FALSE
I17: TRUE | M17: FALSE
B20: Please fill out weighting factors for each criteria on a scale from 0 to 3.
B21: 0 = Does not apply
B22: 1 = Low Importance
B23: 2 = Medium Importance
B24: 3 = High Importance

Sheet Reuse_score (hidden)
B1: Evaluation of residual minimization techniques
B2: Process score
V3: Score | W3: Score | X3: Score | Y3: Score | Z3: Score | AA3: Score | AB3: Score | AC3: Score | AD3: Score | AE3: Score | AF3: Score | AG3: Score | AH3: Score
B4: Criteria | F4: Weighting factor | G4: Brick Making | H4: Cement Manufacturing | I4: Turf Farming | J4: Land Application | K4: Land Reclamation | L4: Forest Land | M4: Citrus Grove | N4: Composting | O4: Soil Making | P4: Landfill Cover | Q4: Road Subgrade | R4: Nutrient Control | S4: Hydrogen Sulfide Binding | V4: Brick Making | W4: Cement Manufact. | X4: Turf Farming | Y4: Land Applicat. | Z4: Land Reclam. | AA4: Forest Land | AB4: Citrus Grove | AC4: Composting | AD4: Soil Making | AE4: Landfill Cover | AF4: Road Subgrade | AG4: Nutrient Control | AH4: Hydr. Sulf. Bind.
B5: Reliability | F5: =Reuse_criteria!E5 -> 0 | G5: 4 | H5: 3 | I5: 3 | J5: 4 | K5: 2 | L5: 1 | M5: 1 | N5: 2 | O5: 4 | P5: 5 | Q5: 3 | R5: 2 | S5: 1 | V5: =$F5*G5 -> 0 | W5: =$F5*H5 -> 0 | X5: =$F5*I5 -> 0 | Y5: =$F5*J5 -> 0 | Z5: =$F5*K5 -> 0 | AA5: =$F5*L5 -> 0 | AB5: =$F5*M5 -> 0 | AC5: =$F5*N5 -> 0 | AD5: =$F5*O5 -> 0 | AE5: =$F5*P5 -> 0 | AF5: =$F5*Q5 -> 0 | AG5: =$F5*R5 -> 0 | AH5: =$F5*S5 -> 0
B6: Flexibility | F6: =Reuse_criteria!E6 -> 0 | G6: 4 | H6: 4 | I6: 2 | J6: 4 | K6: 4 | L6: 1 | M6: 1 | N6: 3 | O6: 2 | P6: 5 | Q6: 4 | R6: 3 | S6: 1 | V6: 0 | W6: =$F6*H6 -> 0 | X6: =$F6*I6 -> 0 | Y6: =$F6*J6 -> 0 | Z6: 0 | AA6: 0 | AB6: 0 | AC6: 0 | AD6: 0 | AE6: 0 | AF6: 0 | AG6: 0 | AH6: 0
B7: Permiting and regulatory impacts | F7: =Reuse_criteria!E7 -> 0 | G7: 4 | H7: 4 | I7: 4 | J7: 3 | K7: 2 | L7: 1 | M7: 1 | N7: 2 | O7: 4 | P7: 3 | Q7: 4 | R7: 3 | S7: 1 | V7: 0 | W7: 0 | X7: 0 | Y7: 0 | Z7: 0 | AA7: 0 | AB7: 0 | AC7: 0 | AD7: 0 | AE7: 0 | AF7: 0 | AG7: 0 | AH7: 0
B8: Liability | F8: =Reuse_criteria!E8 -> 0 | G8: 4 | H8: 4 | I8: 3 | J8: 3 | K8: 2 | L8: 1 | M8: 1 | N8: 2 | O8: 2 | P8: 4 | Q8: 4 | R8: 3 | S8: 1 | V8: 0 | W8: 0 | X8: 0 | Y8: 0 | Z8: 0 | AA8: 0 | AB8: 0 | AC8: 0 | AD8: 0 | AE8: 0 | AF8: 0 | AG8: 0 | AH8: 0
B9: User experience and time in buisness | F9: =Reuse_criteria!E9 -> 0 | G9: 5 | H9: 5 | I9: 4 | J9: 4 | K9: 3 | L9: 1 | M9: 1 | N9: 3 | O9: 4 | P9: 4 | Q9: 4 | R9: 2 | S9: 1 | V9: 0 | W9: 0 | X9: 0 | Y9: 0 | Z9: 0 | AA9: 0 | AB9: 0 | AC9: 0 | AD9: 0 | AE9: 0 | AF9: 0 | AG9: 0 | AH9: 0
B10: Operational complexity | F10: =Reuse_criteria!E10 -> 0 | G10: 3 | H10: 3 | I10: 3 | J10: 4 | K10: 2 | L10: 1 | M10: 1 | N10: 2 | O10: 4 | P10: 5 | Q10: 5 | R10: 4 | S10: 1 | V10: 0 | W10: 0 | X10: 0 | Y10: 0 | Z10: 0 | AA10: 0 | AB10: 0 | AC10: 0 | AD10: 0 | AE10: 0 | AF10: 0 | AG10: 0 | AH10: 0
B11: Expandability | F11: =Reuse_criteria!E11 -> 0 | G11: 3 | H11: 3 | I11: 3 | J11: 4 | K11: 4 | L11: 1 | M11: 1 | N11: 4 | O11: 4 | P11: 3 | Q11: 3 | R11: 5 | S11: 1 | V11: 0 | W11: 0 | X11: 0 | Y11: 0 | Z11: 0 | AA11: 0 | AB11: 0 | AC11: 0 | AD11: 0 | AE11: 0 | AF11: 0 | AG11: 0 | AH11: 0
B12: On-site-requirements | F12: =Reuse_criteria!E12 -> 0 | G12: 4 | H12: 4 | I12: 5 | J12: 2 | K12: 3 | L12: 1 | M12: 1 | N12: 4 | O12: 4 | P12: 4 | Q12: 3 | R12: 3 | S12: 1 | V12: 0 | W12: 0 | X12: 0 | Y12: 0 | Z12: 0 | AA12: 0 | AB12: 0 | AC12: 0 | AD12: 0 | AE12: 0 | AF12: 0 | AG12: 0 | AH12: 0
B13: Compatability with existing processes | F13: =Reuse_criteria!E13 -> 0 | G13: 4 | H13: 4 | I13: 4 | J13: 5 | K13: 3 | L13: 1 | M13: 1 | N13: 4 | O13: 4 | P13: 5 | Q13: 4 | R13: 3 | S13: 1 | V13: 0 | W13: 0 | X13: 0 | Y13: =$F13*J13 -> 0 | Z13: 0 | AA13: 0 | AB13: 0 | AC13: 0 | AD13: 0 | AE13: 0 | AF13: 0 | AG13: 0 | AH13: 0
B14: Environmental impacts | F14: =Reuse_criteria!E14 -> 0 | G14: 3 | H14: 3 | I14: 3 | J14: 4 | K14: 5 | L14: 1 | M14: 1 | N14: 4 | O14: 3 | P14: 4 | Q14: 3 | R14: 5 | S14: 1 | V14: 0 | W14: 0 | X14: 0 | Y14: 0 | Z14: 0 | AA14: 0 | AB14: 0 | AC14: 0 | AD14: 0 | AE14: 0 | AF14: 0 | AG14: 0 | AH14: 0
B15: Vehicle traffic | F15: =Reuse_criteria!E15 -> 0 | G15: 2 | H15: 2 | I15: 2 | J15: 2 | K15: 3 | L15: 1 | M15: 1 | N15: 3 | O15: 2 | P15: 2 | Q15: 4 | R15: 2 | S15: 1 | V15: 0 | W15: 0 | X15: 0 | Y15: 0 | Z15: 0 | AA15: 0 | AB15: 0 | AC15: 0 | AD15: 0 | AE15: 0 | AF15: 0 | AG15: 0 | AH15: 0
B16: Disposal volume | F16: =Reuse_criteria!E16 -> 0 | G16: 5 | H16: 5 | I16: 3 | J16: 4 | K16: 5 | L16: 1 | M16: 1 | N16: 4 | O16: 5 | P16: 5 | Q16: 5 | R16: 5 | S16: 1 | V16: 0 | W16: 0 | X16: 0 | Y16: 0 | Z16: 0 | AA16: 0 | AB16: 0 | AC16: 0 | AD16: 0 | AE16: 0 | AF16: 0 | AG16: 0 | AH16: 0
V17: =SUM(V5:V16) -> 0 | W17: 0 | X17: 0 | Y17: 0 | Z17: 0 | AA17: 0 | AB17: 0 | AC17: 0 | AD17: 0 | AE17: 0 | AF17: 0 | AG17: 0 | AH17: 0

Sheet Reuse_summary
B1: Beneficial Reuse
B2: Summary
B4: Criteria | F4: Weighting factor | G4: Brick Making | H4: Cement Manufact. | I4: Turf Farming | J4: Land Applicat. | K4: Land Reclam. | L4: Forest Land | M4: Citrus Grove | N4: Composting | O4: Soil Making | P4: Landfill Cover | Q4: Road Subgrade | R4: Nutrient Control | S4: Hydr. Sulf. Bind.
B5: Reliability | F5: =Reuse_criteria!E5 -> 0 | G5: =Reuse_score!V5 -> 0 | H5: =Reuse_score!W5 -> 0 | I5: =Reuse_score!X5 -> 0 | J5: =Reuse_score!Y5 -> 0 | K5: =Reuse_score!Z5 -> 0 | L5: =Reuse_score!AA5 -> 0 | M5: =Reuse_score!AB5 -> 0 | N5: =Reuse_score!AC5 -> 0 | O5: =Reuse_score!AD5 -> 0 | P5: =Reuse_score!AE5 -> 0 | Q5: =Reuse_score!AF5 -> 0 | R5: =Reuse_score!AG5 -> 0 | S5: =Reuse_score!AH5 -> 0
B6: Flexibility | F6: =Reuse_criteria!E6 -> 0 | G6: =Reuse_score!V6 -> 0 | H6: =Reuse_score!W6 -> 0 | I6: =Reuse_score!X6 -> 0 | J6: =Reuse_score!Y6 -> 0 | K6: =Reuse_score!Z6 -> 0 | L6: =Reuse_score!AA6 -> 0 | M6: =Reuse_score!AB6 -> 0 | N6: =Reuse_score!AC6 -> 0 | O6: =Reuse_score!AD6 -> 0 | P6: =Reuse_score!AE6 -> 0 | Q6: =Reuse_score!AF6 -> 0 | R6: =Reuse_score!AG6 -> 0 | S6: =Reuse_score!AH6 -> 0
B7: Permitting and regulatory impacts | F7: =Reuse_criteria!E7 -> 0 | G7: =Reuse_score!V7 -> 0 | H7: =Reuse_score!W7 -> 0 | I7: =Reuse_score!X7 -> 0 | J7: =Reuse_score!Y7 -> 0 | K7: =Reuse_score!Z7 -> 0 | L7: =Reuse_score!AA7 -> 0 | M7: =Reuse_score!AB7 -> 0 | N7: =Reuse_score!AC7 -> 0 | O7: =Reuse_score!AD7 -> 0 | P7: =Reuse_score!AE7 -> 0 | Q7: =Reuse_score!AF7 -> 0 | R7: =Reuse_score!AG7 -> 0 | S7: =Reuse_score!AH7 -> 0
B8: Liability | F8: =Reuse_criteria!E8 -> 0 | G8: =Reuse_score!V8 -> 0 | H8: =Reuse_score!W8 -> 0 | I8: =Reuse_score!X8 -> 0 | J8: =Reuse_score!Y8 -> 0 | K8: =Reuse_score!Z8 -> 0 | L8: =Reuse_score!AA8 -> 0 | M8: =Reuse_score!AB8 -> 0 | N8: =Reuse_score!AC8 -> 0 | O8: =Reuse_score!AD8 -> 0 | P8: =Reuse_score!AE8 -> 0 | Q8: =Reuse_score!AF8 -> 0 | R8: =Reuse_score!AG8 -> 0 | S8: =Reuse_score!AH8 -> 0
B9: User experience and time in business | F9: =Reuse_criteria!E9 -> 0 | G9: =Reuse_score!V9 -> 0 | H9: =Reuse_score!W9 -> 0 | I9: =Reuse_score!X9 -> 0 | J9: =Reuse_score!Y9 -> 0 | K9: =Reuse_score!Z9 -> 0 | L9: =Reuse_score!AA9 -> 0 | M9: =Reuse_score!AB9 -> 0 | N9: =Reuse_score!AC9 -> 0 | O9: =Reuse_score!AD9 -> 0 | P9: =Reuse_score!AE9 -> 0 | Q9: =Reuse_score!AF9 -> 0 | R9: =Reuse_score!AG9 -> 0 | S9: =Reuse_score!AH9 -> 0
B10: Operational complexity | F10: =Reuse_criteria!E10 -> 0 | G10: =Reuse_score!V10 -> 0 | H10: =Reuse_score!W10 -> 0 | I10: =Reuse_score!X10 -> 0 | J10: =Reuse_score!Y10 -> 0 | K10: =Reuse_score!Z10 -> 0 | L10: =Reuse_score!AA10 -> 0 | M10: =Reuse_score!AB10 -> 0 | N10: =Reuse_score!AC10 -> 0 | O10: =Reuse_score!AD10 -> 0 | P10: =Reuse_score!AE10 -> 0 | Q10: =Reuse_score!AF10 -> 0 | R10: =Reuse_score!AG10 -> 0 | S10: =Reuse_score!AH10 -> 0
B11: Expandability | F11: =Reuse_criteria!E11 -> 0 | G11: =Reuse_score!V11 -> 0 | H11: =Reuse_score!W11 -> 0 | I11: =Reuse_score!X11 -> 0 | J11: =Reuse_score!Y11 -> 0 | K11: =Reuse_score!Z11 -> 0 | L11: =Reuse_score!AA11 -> 0 | M11: =Reuse_score!AB11 -> 0 | N11: =Reuse_score!AC11 -> 0 | O11: =Reuse_score!AD11 -> 0 | P11: =Reuse_score!AE11 -> 0 | Q11: =Reuse_score!AF11 -> 0 | R11: =Reuse_score!AG11 -> 0 | S11: =Reuse_score!AH11 -> 0
B12: On-site land requirements | F12: =Reuse_criteria!E12 -> 0 | G12: =Reuse_score!V12 -> 0 | H12: =Reuse_score!W12 -> 0 | I12: =Reuse_score!X12 -> 0 | J12: =Reuse_score!Y12 -> 0 | K12: =Reuse_score!Z12 -> 0 | L12: =Reuse_score!AA12 -> 0 | M12: =Reuse_score!AB12 -> 0 | N12: =Reuse_score!AC12 -> 0 | O12: =Reuse_score!AD12 -> 0 | P12: =Reuse_score!AE12 -> 0 | Q12: =Reuse_score!AF12 -> 0 | R12: =Reuse_score!AG12 -> 0 | S12: =Reuse_score!AH12 -> 0
B13: Compatibility with existing processes | F13: =Reuse_criteria!E13 -> 0 | G13: =Reuse_score!V13 -> 0 | H13: =Reuse_score!W13 -> 0 | I13: =Reuse_score!X13 -> 0 | J13: =Reuse_score!Y13 -> 0 | K13: =Reuse_score!Z13 -> 0 | L13: =Reuse_score!AA13 -> 0 | M13: =Reuse_score!AB13 -> 0 | N13: =Reuse_score!AC13 -> 0 | O13: =Reuse_score!AD13 -> 0 | P13: =Reuse_score!AE13 -> 0 | Q13: =Reuse_score!AF13 -> 0 | R13: =Reuse_score!AG13 -> 0 | S13: =Reuse_score!AH13 -> 0
B14: Environmental impacts | F14: =Reuse_criteria!E14 -> 0 | G14: =Reuse_score!V14 -> 0 | H14: =Reuse_score!W14 -> 0 | I14: =Reuse_score!X14 -> 0 | J14: =Reuse_score!Y14 -> 0 | K14: =Reuse_score!Z14 -> 0 | L14: =Reuse_score!AA14 -> 0 | M14: =Reuse_score!AB14 -> 0 | N14: =Reuse_score!AC14 -> 0 | O14: =Reuse_score!AD14 -> 0 | P14: =Reuse_score!AE14 -> 0 | Q14: =Reuse_score!AF14 -> 0 | R14: =Reuse_score!AG14 -> 0 | S14: =Reuse_score!AH14 -> 0
B15: Vehicle traffic | F15: =Reuse_criteria!E15 -> 0 | G15: =Reuse_score!V15 -> 0 | H15: =Reuse_score!W15 -> 0 | I15: =Reuse_score!X15 -> 0 | J15: =Reuse_score!Y15 -> 0 | K15: =Reuse_score!Z15 -> 0 | L15: =Reuse_score!AA15 -> 0 | M15: =Reuse_score!AB15 -> 0 | N15: =Reuse_score!AC15 -> 0 | O15: =Reuse_score!AD15 -> 0 | P15: =Reuse_score!AE15 -> 0 | Q15: =Reuse_score!AF15 -> 0 | R15: =Reuse_score!AG15 -> 0 | S15: =Reuse_score!AH15 -> 0
B16: Disposal volume | F16: =Reuse_criteria!E16 -> 0 | G16: =Reuse_score!V16 -> 0 | H16: =Reuse_score!W16 -> 0 | I16: =Reuse_score!X16 -> 0 | J16: =Reuse_score!Y16 -> 0 | K16: =Reuse_score!Z16 -> 0 | L16: =Reuse_score!AA16 -> 0 | M16: =Reuse_score!AB16 -> 0 | N16: =Reuse_score!AC16 -> 0 | O16: =Reuse_score!AD16 -> 0 | P16: =Reuse_score!AE16 -> 0 | Q16: =Reuse_score!AF16 -> 0 | R16: =Reuse_score!AG16 -> 0 | S16: =Reuse_score!AH16 -> 0
G17: =SUM(G5:G16) -> 0 | H17: 0 | I17: 0 | J17: 0 | K17: 0 | L17: 0 | M17: 0 | N17: 0 | O17: 0 | P17: 0 | Q17: 0 | R17: 0 | S17: 0

Sheet Resid_print

Sheet Resid_info
B1: Residual minimization
B2: Click a red button to select a minimization category:
I9: Click the gold buttons to find information about each method

Sheet Resid_button (hidden)

Sheet Resid_text (hidden)

Sheet Resid_criteria
B1: Residual minimization
B2: Weighting Factors
B4: Criteria | F4: Weighting Factor | I4: Select minimization processes to consider:
B5: Probablility of success | F5: 0 | M5: FALSE
B6: Operational complexity | F6: 0 | M6: FALSE
B7: Ease of implementation | F7: 0 | M7: FALSE | N7: FALSE
B8: Operator time required | F8: 0 | M8: FALSE | N8: FALSE
B9: On-site land requirements | F9: 0 | M9: FALSE
B10: Reliability | F10: 0 | M10: FALSE
B11: Residual volume reduction | F11: 0 | M11: FALSE
B12: Residual mass reduction | F12: 0 | M12: FALSE
B13: Capital costs | F13: 0 | M13: FALSE
B14: O&M cost | F14: 0 | M14: FALSE
B15: Ancillary benefit | F15: 0 | M15: FALSE
B16: Regulatory acceptance | F16: 0 | M16: FALSE
B17: Public acceptance | F17: 0 | M17: FALSE
B18: Impact on finished water quality | F18: 0
B20: Please fill out weighting factors for each criteria on a scale from 0 to 3.
B21: 0 = Does not apply
B22: 1 = Low Importance
B23: 2 = Medium Importance
B24: 3 = High Importance

Sheet Resid_score (hidden)
B1: Evaluation of residual minimization techniques
B2: Process score
X3: Score | Y3: Score | AB3: Score | AC3: Score | AD3: Score | AE3: Score | AF3: Score | AG3: Score | AH3: Score | AI3: Score | AJ3: Score | AK3: Score | AL3: Score
B4: Criteria | F4: Weighting factor | G4: Watershed protection | H4: Intake optimization | I4: Onsite pre-sedimentation | J4: Riverbank Filtration | K4: Improved Chemical Control | L4: Changening Softening Goals | M4: Improved Process Performance | N4: Seasonal Direct Filtration | O4: Monitor SFBW Quality | P4: Air/Water Backwash | Q4: Optimizing Media | R4: TOC Adsorption | S4: Membrane | T4: Improved Sludge collection | U4: Lime/ Coagulant Recovery | X4: Watershed protection | Y4: Intake optimization | Z4: Onsite pre-sedimentation | AA4: Riverbank Filtration | AB4: Improved Chemical Control | AC4: Changening Softening Goals | AD4: Improved Process Performance | AE4: Seasonal Direct Filtration | AF4: Monitor SFBW Quality | AG4: Air/Water Backwash | AH4: Optimizing Media | AI4: TOC Adsorption | AJ4: Membrane | AK4: Improved Sludge collection | AL4: Lime/ Coagulant Recovery
B5: Probability of success | F5: =Resid_criteria!F5 -> 0 | G5: 1 | H5: 2 | I5: 4 | J5: 5 | K5: 3 | L5: 5 | M5: 3 | N5: 5 | O5: 4 | P5: 4 | Q5: 4 | R5: 3 | S5: 3 | T5: 5 | U5: 5 | X5: =$F5*G5 -> 0 | Y5: =$F5*H5 -> 0 | Z5: =$F5*I5 -> 0 | AA5: =$F5*J5 -> 0 | AB5: =$F5*K5 -> 0 | AC5: =$F5*L5 -> 0 | AD5: =$F5*M5 -> 0 | AE5: =$F5*N5 -> 0 | AF5: =$F5*O5 -> 0 | AG5: =$F5*P5 -> 0 | AH5: =$F5*Q5 -> 0 | AI5: =$F5*R5 -> 0 | AJ5: =$F5*S5 -> 0 | AK5: =$F5*T5 -> 0 | AL5: =$F5*U5 -> 0
B6: Operational complexity | F6: =Resid_criteria!F6 -> 0 | G6: 1 | H6: 5 | I6: 4 | J6: 4 | K6: 5 | L6: 5 | M6: 2 | N6: 2 | O6: 4 | P6: 5 | Q6: 5 | R6: 1 | S6: 1 | T6: 5 | U6: 1 | X6: 0 | Y6: =$F6*H6 -> 0 | Z6: =$F6*I6 -> 0 | AA6: =$F6*J6 -> 0 | AB6: =$F6*K6 -> 0 | AC6: 0 | AD6: 0 | AE6: 0 | AF6: 0 | AG6: 0 | AH6: 0 | AI6: 0 | AJ6: 0 | AK6: 0 | AL6: 0
B7: ease of implementation | F7: =Resid_criteria!F7 -> 0 | G7: 1 | H7: 2 | I7: 2 | J7: 1 | K7: 3 | L7: 4 | M7: 5 | N7: 2 | O7: 5 | P7: 2 | Q7: 3 | R7: 1 | S7: 1 | T7: 2 | U7: 1 | X7: 0 | Y7: 0 | Z7: 0 | AA7: 0 | AB7: 0 | AC7: 0 | AD7: 0 | AE7: 0 | AF7: 0 | AG7: 0 | AH7: 0 | AI7: 0 | AJ7: 0 | AK7: 0 | AL7: 0
B8: Operator time consumption | F8: =Resid_criteria!F8 -> 0 | G8: 2 | H8: 5 | I8: 3 | J8: 4 | K8: 4 | L8: 5 | M8: 3 | N8: 3 | O8: 5 | P8: 5 | Q8: 5 | R8: 2 | S8: 2 | T8: 5 | U8: 1 | X8: 0 | Y8: 0 | Z8: 0 | AA8: 0 | AB8: 0 | AC8: 0 | AD8: 0 | AE8: 0 | AF8: 0 | AG8: 0 | AH8: 0 | AI8: 0 | AJ8: 0 | AK8: 0 | AL8: 0
B9: On-site land requirements | F9: =Resid_criteria!F9 -> 0 | G9: 5 | H9: 5 | I9: 1 | J9: 1 | K9: 5 | L9: 5 | M9: 5 | N9: 5 | O9: 5 | P9: 5 | Q9: 5 | R9: 3 | S9: 4 | T9: 5 | U9: 1 | X9: 0 | Y9: 0 | Z9: 0 | AA9: 0 | AB9: 0 | AC9: 0 | AD9: 0 | AE9: 0 | AF9: 0 | AG9: 0 | AH9: 0 | AI9: 0 | AJ9: 0 | AK9: 0 | AL9: 0
B10: Reliability | F10: =Resid_criteria!F10 -> 0 | G10: 2 | H10: 3 | I10: 3 | J10: 4 | K10: 5 | L10: 5 | M10: 5 | N10: 4 | O10: 4 | P10: 3 | Q10: 5 | R10: 3 | S10: 1 | T10: 2 | U10: 2 | X10: 0 | Y10: 0 | Z10: 0 | AA10: 0 | AB10: 0 | AC10: 0 | AD10: 0 | AE10: 0 | AF10: 0 | AG10: 0 | AH10: 0 | AI10: 0 | AJ10: 0 | AK10: 0 | AL10: 0
B11: Residual volume reduction | F11: =Resid_criteria!F11 -> 0 | G11: 3 | H11: 3 | I11: 3 | J11: 5 | K11: 2 | L11: 3 | M11: 2 | N11: 3 | O11: 3 | P11: 3 | Q11: 3 | R11: 2 | S11: 1 | T11: 3 | U11: 5 | X11: 0 | Y11: 0 | Z11: 0 | AA11: 0 | AB11: 0 | AC11: 0 | AD11: 0 | AE11: 0 | AF11: 0 | AG11: 0 | AH11: 0 | AI11: 0 | AJ11: 0 | AK11: 0 | AL11: 0
B12: Residual mass reduction | F12: =Resid_criteria!F12 -> 0 | G12: 3 | H12: 3 | I12: 3 | J12: 4 | K12: 2 | L12: 3 | M12: 2 | N12: 3 | O12: 1 | P12: 1 | Q12: 1 | R12: 3 | S12: 3 | T12: 1 | U12: 5 | X12: 0 | Y12: 0 | Z12: 0 | AA12: 0 | AB12: 0 | AC12: 0 | AD12: 0 | AE12: 0 | AF12: 0 | AG12: 0 | AH12: 0 | AI12: 0 | AJ12: 0 | AK12: 0 | AL12: 0
B13: Capital costs | F13: =Resid_criteria!F13 -> 0 | G13: 3 | H13: 2 | I13: 1 | J13: 1 | K13: 4 | L13: 5 | M13: 5 | N13: 5 | O13: 4 | P13: 3 | Q13: 4 | R13: 1 | S13: 1 | T13: 2 | U13: 1 | X13: 0 | Y13: 0 | Z13: 0 | AA13: 0 | AB13: 0 | AC13: 0 | AD13: 0 | AE13: 0 | AF13: 0 | AG13: 0 | AH13: 0 | AI13: 0 | AJ13: 0 | AK13: 0 | AL13: 0
B14: O&M Cost | F14: =Resid_criteria!F14 -> 0 | G14: 2 | H14: 5 | I14: 4 | J14: 2 | K14: 5 | L14: 5 | M14: 4 | N14: 5 | O14: 5 | P14: 4 | Q14: 5 | R14: 2 | S14: 1 | T14: 4 | U14: 5 | X14: 0 | Y14: 0 | Z14: 0 | AA14: 0 | AB14: 0 | AC14: 0 | AD14: 0 | AE14: 0 | AF14: 0 | AG14: 0 | AH14: 0 | AI14: 0 | AJ14: 0 | AK14: 0 | AL14: 0
B15: Ancillary benefit | F15: =Resid_criteria!F15 -> 0 | G15: 5 | H15: 3 | I15: 2 | J15: 5 | K15: 2 | L15: 1 | M15: 4 | N15: 2 | O15: 2 | P15: 2 | Q15: 2 | R15: 4 | S15: 4 | T15: 3 | U15: 2 | X15: 0 | Y15: 0 | Z15: 0 | AA15: 0 | AB15: 0 | AC15: 0 | AD15: 0 | AE15: 0 | AF15: 0 | AG15: 0 | AH15: 0 | AI15: 0 | AJ15: 0 | AK15: 0 | AL15: 0
B16: Regulatory acceptance | F16: =Resid_criteria!F16 -> 0 | G16: 5 | H16: 3 | I16: 5 | J16: 4 | K16: 5 | L16: 3 | M16: 5 | N16: 2 | O16: 5 | P16: 5 | Q16: 5 | R16: 4 | S16: 4 | T16: 5 | U16: 2 | X16: 0 | Y16: 0 | Z16: 0 | AA16: 0 | AB16: 0 | AC16: 0 | AD16: 0 | AE16: 0 | AF16: 0 | AG16: 0 | AH16: 0 | AI16: 0 | AJ16: 0 | AK16: 0 | AL16: 0
B17: Public acceptance | F17: =Resid_criteria!F17 -> 0 | G17: 3 | H17: 5 | I17: 4 | J17: 5 | K17: 5 | L17: 2 | M17: 5 | N17: 5 | O17: 5 | P17: 5 | Q17: 5 | R17: 5 | S17: 5 | T17: 5 | U17: 4 | X17: 0 | Y17: 0 | Z17: 0 | AA17: 0 | AB17: 0 | AC17: 0 | AD17: 0 | AE17: 0 | AF17: 0 | AG17: 0 | AH17: 0 | AI17: 0 | AJ17: 0 | AK17: 0 | AL17: 0
B18: Impact on finished water quality | F18: =Resid_criteria!F18 -> 0 | G18: 4 | H18: 4 | I18: 4 | J18: 5 | K18: 3 | L18: 1 | M18: 4 | N18: 2 | O18: 3 | P18: 3 | Q18: 3 | R18: 5 | S18: 5 | T18: 3 | U18: 3 | X18: 0 | Y18: 0 | Z18: 0 | AA18: 0 | AB18: 0 | AC18: 0 | AD18: 0 | AE18: 0 | AF18: 0 | AG18: 0 | AH18: 0 | AI18: 0 | AJ18: 0 | AK18: 0 | AL18: 0
X19: =SUM(X5:X18) -> 0 | Y19: =SUM(Y5:Y18) -> 0 | Z19: 0 | AA19: 0 | AB19: 0 | AC19: 0 | AD19: 0 | AE19: 0 | AF19: 0 | AG19: 0 | AH19: 0 | AI19: 0 | AJ19: 0 | AK19: 0 | AL19: 0

Sheet Resid_summary
B1: Residual minimization
B2: Summary
B4: Criteria | F4: Weighting factor | G4: Watershed protection | H4: Intake optimiz. | I4: Onsite Pre-Sediment. | J4: Riverbank Filtration | K4: Improved Chemical Control | L4: Changening Softening Goals | M4: Improved Process Perform. | N4: Seasonal Direct Filtration | O4: Monitor SFBW Quality | P4: Air/Water Backwash | Q4: Optimizing Media | R4: TOC Adsorption | S4: Membrane | T4: Improved Sludge collection | U4: Lime/ Coagulant Recovery
B5: Probablility of success | F5: =Resid_criteria!F5 -> 0 | G5: =Resid_score!$F5*Resid_score!G5 -> 0 | H5: =Resid_score!$F5*Resid_score!H5 -> 0 | I5: =Resid_score!$F5*Resid_score!I5 -> 0 | J5: =Resid_score!$F5*Resid_score!J5 -> 0 | K5: =Resid_score!$F5*Resid_score!K5 -> 0 | L5: =Resid_score!$F5*Resid_score!L5 -> 0 | M5: =Resid_score!$F5*Resid_score!M5 -> 0 | N5: =Resid_score!$F5*Resid_score!N5 -> 0 | O5: =Resid_score!$F5*Resid_score!O5 -> 0 | P5: =Resid_score!$F5*Resid_score!P5 -> 0 | Q5: =Resid_score!$F5*Resid_score!Q5 -> 0 | R5: =Resid_score!$F5*Resid_score!R5 -> 0 | S5: =Resid_score!$F5*Resid_score!S5 -> 0 | T5: =Resid_score!$F5*Resid_score!T5 -> 0 | U5: =Resid_score!$F5*Resid_score!U5 -> 0
B6: Operational complexity | F6: =Resid_criteria!F6 -> 0 | G6: =Resid_score!$F6*Resid_score!G6 -> 0 | H6: =Resid_score!$F6*Resid_score!H6 -> 0 | I6: =Resid_score!$F6*Resid_score!I6 -> 0 | J6: =Resid_score!$F6*Resid_score!J6 -> 0 | K6: =Resid_score!$F6*Resid_score!K6 -> 0 | L6: =Resid_score!$F6*Resid_score!L6 -> 0 | M6: =Resid_score!$F6*Resid_score!M6 -> 0 | N6: =Resid_score!$F6*Resid_score!N6 -> 0 | O6: =Resid_score!$F6*Resid_score!O6 -> 0 | P6: =Resid_score!$F6*Resid_score!P6 -> 0 | Q6: =Resid_score!$F6*Resid_score!Q6 -> 0 | R6: =Resid_score!$F6*Resid_score!R6 -> 0 | S6: =Resid_score!$F6*Resid_score!S6 -> 0 | T6: =Resid_score!$F6*Resid_score!T6 -> 0 | U6: =Resid_score!$F6*Resid_score!U6 -> 0
B7: Ease of implementation | F7: =Resid_criteria!F7 -> 0 | G7: =Resid_score!$F7*Resid_score!G7 -> 0 | H7: =Resid_score!$F7*Resid_score!H7 -> 0 | I7: =Resid_score!$F7*Resid_score!I7 -> 0 | J7: =Resid_score!$F7*Resid_score!J7 -> 0 | K7: =Resid_score!$F7*Resid_score!K7 -> 0 | L7: =Resid_score!$F7*Resid_score!L7 -> 0 | M7: =Resid_score!$F7*Resid_score!M7 -> 0 | N7: =Resid_score!$F7*Resid_score!N7 -> 0 | O7: =Resid_score!$F7*Resid_score!O7 -> 0 | P7: =Resid_score!$F7*Resid_score!P7 -> 0 | Q7: =Resid_score!$F7*Resid_score!Q7 -> 0 | R7: =Resid_score!$F7*Resid_score!R7 -> 0 | S7: =Resid_score!$F7*Resid_score!S7 -> 0 | T7: =Resid_score!$F7*Resid_score!T7 -> 0 | U7: =Resid_score!$F7*Resid_score!U7 -> 0
B8: Operator time required | F8: =Resid_criteria!F8 -> 0 | G8: =Resid_score!$F8*Resid_score!G8 -> 0 | H8: =Resid_score!$F8*Resid_score!H8 -> 0 | I8: =Resid_score!$F8*Resid_score!I8 -> 0 | J8: =Resid_score!$F8*Resid_score!J8 -> 0 | K8: =Resid_score!$F8*Resid_score!K8 -> 0 | L8: =Resid_score!$F8*Resid_score!L8 -> 0 | M8: =Resid_score!$F8*Resid_score!M8 -> 0 | N8: =Resid_score!$F8*Resid_score!N8 -> 0 | O8: =Resid_score!$F8*Resid_score!O8 -> 0 | P8: =Resid_score!$F8*Resid_score!P8 -> 0 | Q8: =Resid_score!$F8*Resid_score!Q8 -> 0 | R8: =Resid_score!$F8*Resid_score!R8 -> 0 | S8: =Resid_score!$F8*Resid_score!S8 -> 0 | T8: =Resid_score!$F8*Resid_score!T8 -> 0 | U8: =Resid_score!$F8*Resid_score!U8 -> 0
B9: On-site land requirements | F9: =Resid_criteria!F9 -> 0 | G9: =Resid_score!$F9*Resid_score!G9 -> 0 | H9: =Resid_score!$F9*Resid_score!H9 -> 0 | I9: =Resid_score!$F9*Resid_score!I9 -> 0 | J9: =Resid_score!$F9*Resid_score!J9 -> 0 | K9: =Resid_score!$F9*Resid_score!K9 -> 0 | L9: =Resid_score!$F9*Resid_score!L9 -> 0 | M9: =Resid_score!$F9*Resid_score!M9 -> 0 | N9: =Resid_score!$F9*Resid_score!N9 -> 0 | O9: =Resid_score!$F9*Resid_score!O9 -> 0 | P9: =Resid_score!$F9*Resid_score!P9 -> 0 | Q9: =Resid_score!$F9*Resid_score!Q9 -> 0 | R9: =Resid_score!$F9*Resid_score!R9 -> 0 | S9: =Resid_score!$F9*Resid_score!S9 -> 0 | T9: =Resid_score!$F9*Resid_score!T9 -> 0 | U9: =Resid_score!$F9*Resid_score!U9 -> 0
B10: Reliability | F10: =Resid_criteria!F10 -> 0 | G10: =Resid_score!$F10*Resid_score!G10 -> 0 | H10: =Resid_score!$F10*Resid_score!H10 -> 0 | I10: =Resid_score!$F10*Resid_score!I10 -> 0 | J10: =Resid_score!$F10*Resid_score!J10 -> 0 | K10: =Resid_score!$F10*Resid_score!K10 -> 0 | L10: =Resid_score!$F10*Resid_score!L10 -> 0 | M10: =Resid_score!$F10*Resid_score!M10 -> 0 | N10: =Resid_score!$F10*Resid_score!N10 -> 0 | O10: =Resid_score!$F10*Resid_score!O10 -> 0 | P10: =Resid_score!$F10*Resid_score!P10 -> 0 | Q10: =Resid_score!$F10*Resid_score!Q10 -> 0 | R10: =Resid_score!$F10*Resid_score!R10 -> 0 | S10: =Resid_score!$F10*Resid_score!S10 -> 0 | T10: =Resid_score!$F10*Resid_score!T10 -> 0 | U10: =Resid_score!$F10*Resid_score!U10 -> 0
B11: Residual volume reduction | F11: =Resid_criteria!F11 -> 0 | G11: =Resid_score!$F11*Resid_score!G11 -> 0 | H11: =Resid_score!$F11*Resid_score!H11 -> 0 | I11: =Resid_score!$F11*Resid_score!I11 -> 0 | J11: =Resid_score!$F11*Resid_score!J11 -> 0 | K11: =Resid_score!$F11*Resid_score!K11 -> 0 | L11: =Resid_score!$F11*Resid_score!L11 -> 0 | M11: =Resid_score!$F11*Resid_score!M11 -> 0 | N11: =Resid_score!$F11*Resid_score!N11 -> 0 | O11: =Resid_score!$F11*Resid_score!O11 -> 0 | P11: =Resid_score!$F11*Resid_score!P11 -> 0 | Q11: =Resid_score!$F11*Resid_score!Q11 -> 0 | R11: =Resid_score!$F11*Resid_score!R11 -> 0 | S11: =Resid_score!$F11*Resid_score!S11 -> 0 | T11: =Resid_score!$F11*Resid_score!T11 -> 0 | U11: =Resid_score!$F11*Resid_score!U11 -> 0
B12: Residual mass reduction | F12: =Resid_criteria!F12 -> 0 | G12: =Resid_score!$F12*Resid_score!G12 -> 0 | H12: =Resid_score!$F12*Resid_score!H12 -> 0 | I12: =Resid_score!$F12*Resid_score!I12 -> 0 | J12: =Resid_score!$F12*Resid_score!J12 -> 0 | K12: =Resid_score!$F12*Resid_score!K12 -> 0 | L12: =Resid_score!$F12*Resid_score!L12 -> 0 | M12: =Resid_score!$F12*Resid_score!M12 -> 0 | N12: =Resid_score!$F12*Resid_score!N12 -> 0 | O12: =Resid_score!$F12*Resid_score!O12 -> 0 | P12: =Resid_score!$F12*Resid_score!P12 -> 0 | Q12: =Resid_score!$F12*Resid_score!Q12 -> 0 | R12: =Resid_score!$F12*Resid_score!R12 -> 0 | S12: =Resid_score!$F12*Resid_score!S12 -> 0 | T12: =Resid_score!$F12*Resid_score!T12 -> 0 | U12: =Resid_score!$F12*Resid_score!U12 -> 0
B13: Capital costs | F13: =Resid_criteria!F13 -> 0 | G13: =Resid_score!$F13*Resid_score!G13 -> 0 | H13: =Resid_score!$F13*Resid_score!H13 -> 0 | I13: =Resid_score!$F13*Resid_score!I13 -> 0 | J13: =Resid_score!$F13*Resid_score!J13 -> 0 | K13: =Resid_score!$F13*Resid_score!K13 -> 0 | L13: =Resid_score!$F13*Resid_score!L13 -> 0 | M13: =Resid_score!$F13*Resid_score!M13 -> 0 | N13: =Resid_score!$F13*Resid_score!N13 -> 0 | O13: =Resid_score!$F13*Resid_score!O13 -> 0 | P13: =Resid_score!$F13*Resid_score!P13 -> 0 | Q13: =Resid_score!$F13*Resid_score!Q13 -> 0 | R13: =Resid_score!$F13*Resid_score!R13 -> 0 | S13: =Resid_score!$F13*Resid_score!S13 -> 0 | T13: =Resid_score!$F13*Resid_score!T13 -> 0 | U13: =Resid_score!$F13*Resid_score!U13 -> 0
B14: O&M cost | F14: =Resid_criteria!F14 -> 0 | G14: =Resid_score!$F14*Resid_score!G14 -> 0 | H14: =Resid_score!$F14*Resid_score!H14 -> 0 | I14: =Resid_score!$F14*Resid_score!I14 -> 0 | J14: =Resid_score!$F14*Resid_score!J14 -> 0 | K14: =Resid_score!$F14*Resid_score!K14 -> 0 | L14: =Resid_score!$F14*Resid_score!L14 -> 0 | M14: =Resid_score!$F14*Resid_score!M14 -> 0 | N14: =Resid_score!$F14*Resid_score!N14 -> 0 | O14: =Resid_score!$F14*Resid_score!O14 -> 0 | P14: =Resid_score!$F14*Resid_score!P14 -> 0 | Q14: =Resid_score!$F14*Resid_score!Q14 -> 0 | R14: =Resid_score!$F14*Resid_score!R14 -> 0 | S14: =Resid_score!$F14*Resid_score!S14 -> 0 | T14: =Resid_score!$F14*Resid_score!T14 -> 0 | U14: =Resid_score!$F14*Resid_score!U14 -> 0
B15: Ancillary benefit | F15: =Resid_criteria!F15 -> 0 | G15: =Resid_score!$F15*Resid_score!G15 -> 0 | H15: =Resid_score!$F15*Resid_score!H15 -> 0 | I15: =Resid_score!$F15*Resid_score!I15 -> 0 | J15: =Resid_score!$F15*Resid_score!J15 -> 0 | K15: =Resid_score!$F15*Resid_score!K15 -> 0 | L15: =Resid_score!$F15*Resid_score!L15 -> 0 | M15: =Resid_score!$F15*Resid_score!M15 -> 0 | N15: =Resid_score!$F15*Resid_score!N15 -> 0 | O15: =Resid_score!$F15*Resid_score!O15 -> 0 | P15: =Resid_score!$F15*Resid_score!P15 -> 0 | Q15: =Resid_score!$F15*Resid_score!Q15 -> 0 | R15: =Resid_score!$F15*Resid_score!R15 -> 0 | S15: =Resid_score!$F15*Resid_score!S15 -> 0 | T15: =Resid_score!$F15*Resid_score!T15 -> 0 | U15: =Resid_score!$F15*Resid_score!U15 -> 0
B16: Regulatory acceptance | F16: =Resid_criteria!F16 -> 0 | G16: =Resid_score!$F16*Resid_score!G16 -> 0 | H16: =Resid_score!$F16*Resid_score!H16 -> 0 | I16: =Resid_score!$F16*Resid_score!I16 -> 0 | J16: =Resid_score!$F16*Resid_score!J16 -> 0 | K16: =Resid_score!$F16*Resid_score!K16 -> 0 | L16: =Resid_score!$F16*Resid_score!L16 -> 0 | M16: =Resid_score!$F16*Resid_score!M16 -> 0 | N16: =Resid_score!$F16*Resid_score!N16 -> 0 | O16: =Resid_score!$F16*Resid_score!O16 -> 0 | P16: =Resid_score!$F16*Resid_score!P16 -> 0 | Q16: =Resid_score!$F16*Resid_score!Q16 -> 0 | R16: =Resid_score!$F16*Resid_score!R16 -> 0 | S16: =Resid_score!$F16*Resid_score!S16 -> 0 | T16: =Resid_score!$F16*Resid_score!T16 -> 0 | U16: =Resid_score!$F16*Resid_score!U16 -> 0
B17: Public acceptance | F17: =Resid_criteria!F17 -> 0 | G17: =Resid_score!$F17*Resid_score!G17 -> 0 | H17: =Resid_score!$F17*Resid_score!H17 -> 0 | I17: =Resid_score!$F17*Resid_score!I17 -> 0 | J17: =Resid_score!$F17*Resid_score!J17 -> 0 | K17: =Resid_score!$F17*Resid_score!K17 -> 0 | L17: =Resid_score!$F17*Resid_score!L17 -> 0 | M17: =Resid_score!$F17*Resid_score!M17 -> 0 | N17: =Resid_score!$F17*Resid_score!N17 -> 0 | O17: =Resid_score!$F17*Resid_score!O17 -> 0 | P17: =Resid_score!$F17*Resid_score!P17 -> 0 | Q17: =Resid_score!$F17*Resid_score!Q17 -> 0 | R17: =Resid_score!$F17*Resid_score!R17 -> 0 | S17: =Resid_score!$F17*Resid_score!S17 -> 0 | T17: =Resid_score!$F17*Resid_score!T17 -> 0 | U17: =Resid_score!$F17*Resid_score!U17 -> 0
B18: Impact on finished water quality | F18: =Resid_criteria!F18 -> 0 | G18: =Resid_score!$F18*Resid_score!G18 -> 0 | H18: =Resid_score!$F18*Resid_score!H18 -> 0 | I18: =Resid_score!$F18*Resid_score!I18 -> 0 | J18: =Resid_score!$F18*Resid_score!J18 -> 0 | K18: =Resid_score!$F18*Resid_score!K18 -> 0 | L18: =Resid_score!$F18*Resid_score!L18 -> 0 | M18: =Resid_score!$F18*Resid_score!M18 -> 0 | N18: =Resid_score!$F18*Resid_score!N18 -> 0 | O18: =Resid_score!$F18*Resid_score!O18 -> 0 | P18: =Resid_score!$F18*Resid_score!P18 -> 0 | Q18: =Resid_score!$F18*Resid_score!Q18 -> 0 | R18: =Resid_score!$F18*Resid_score!R18 -> 0 | S18: =Resid_score!$F18*Resid_score!S18 -> 0 | T18: =Resid_score!$F18*Resid_score!T18 -> 0 | U18: =Resid_score!$F18*Resid_score!U18 -> 0
F19: Sum of weighted score: | G19: =SUM(G5:G18) -> 0 | H19: =SUM(H5:H18) -> 0 | I19: 0 | J19: 0 | K19: 0 | L19: 0 | M19: 0 | N19: 0 | O19: 0 | P19: 0 | Q19: 0 | R19: 0 | S19: 0 | T19: 0 | U19: =SUM(U5:U18) -> 0
